OrganisationNameLabel,OrganisationURI,EffectiveDate,Directorate/ServiceWhereExpenditureIncurred,ServiceCategoryLabel,ServiceCategoryURI,Supplier,SupplierRegisteredCompany Number,PaymentDate,TransactionNumber,NetAmount,IrrecoverableVAT,PurposeOfSpend,ProcurementClassification:ProclassLabel,ProcrementClassification:ProClassCode
South Lakeland District Council,http://opendatacommunities.org/id/district-council/south-lakeland,31/08/2014,Social Enterprise Admin,Central Services,http://opendatacommunities.org/def/concept/finance/sercop/objective/102,ADECCO UK LIMITED,00593232,20-08-2014,0000041740,544.64,0,TEMPORARY GAZETTEER OFFICER,261400,HR Temporary & Agency Staff
South Lakeland District Council,http://opendatacommunities.org/id/district-council/south-lakeland,31/08/2014,Social Enterprise Admin,Central Services,http://opendatacommunities.org/def/concept/finance/sercop/objective/102,NORTHGATE VEHICLE HIRE LTD,01434157,06-08-2014,0000041805,30.28,0,Lake Warden,381600,Vehicle Mgt Leasing
South Lakeland District Council,http://opendatacommunities.org/id/district-council/south-lakeland,31/08/2014,Coronation Hall,Cultural Environmental Regulatory & Planning Services,http://opendatacommunities.org/def/concept/finance/sercop/objective/104,ST JOHN AMBULANCE CUMBRIA,,06-08-2014,0000042030,52.8,0,FAO ,311600,Healthcare Services
South Lakeland District Council,http://opendatacommunities.org/id/district-council/south-lakeland,31/08/2014,Business Support Community Services,Internal Trading Accounts,,ARCO LIMITED,00133804,06-08-2014,0000042069,4.7,0,Eez wipes,141100,Clothing Protective
South Lakeland District Council,http://opendatacommunities.org/id/district-council/south-lakeland,31/08/2014,Business Support Community Services,Internal Trading Accounts,,ARCO LIMITED,00133804,06-08-2014,0000042069,10.76,0,Eez wipes,141100,Clothing Protective
South Lakeland District Council,http://opendatacommunities.org/id/district-council/south-lakeland,31/08/2014,Business Support Community Services,Internal Trading Accounts,,ARCO LIMITED,00133804,06-08-2014,0000042069,416.2,0,Eez wipes,141100,Clothing Protective
South Lakeland District Council,http://opendatacommunities.org/id/district-council/south-lakeland,31/08/2014,Business Support Community Services,Cultural Environmental Regulatory & Planning Services,http://opendatacommunities.org/def/concept/finance/sercop/objective/104,INTELLIGENT DATA SYSTEMS (UK) LTD,05148878,20-08-2014,0000042250,63.25,0,11 X IDS Checks for Taxi Drivers,271510,ICT Application Service Provision
South Lakeland District Council,http://opendatacommunities.org/id/district-council/south-lakeland,31/08/2014,Human Resources,Central Services,http://opendatacommunities.org/def/concept/finance/sercop/objective/102,OH Acquisitions Ltd,07365943,27-08-2014,0000042251,443.5,0,Preferred Candidate Starter Screening -,191800,Facilities Public Relations & Image
South Lakeland District Council,http://opendatacommunities.org/id/district-council/south-lakeland,31/08/2014,Development Management,Cultural Environmental Regulatory & Planning Services,http://opendatacommunities.org/def/concept/finance/sercop/objective/104,CHRIS BOWKER LTD,01642561,06-08-2014,0000042321,26.5,0,Check of electrical work under Part P of,101100,Building Electrical
South Lakeland District Council,http://opendatacommunities.org/id/district-council/south-lakeland,31/08/2014,Business Support Community Services,Internal Trading Accounts,,DENNIS EAGLE LTD,03794455,11-08-2014,0000042447,199.36,0,Switches,381300,Vehicle Mgt Industrial
South Lakeland District Council,http://opendatacommunities.org/id/district-council/south-lakeland,31/08/2014,Social Enterprise Admin,Cultural Environmental Regulatory & Planning Services,http://opendatacommunities.org/def/concept/finance/sercop/objective/104,NEWSQUEST MEDIA GROUP LTD,03102566,13-08-2014,0000042449,149,0,PUBLIC NOTICES FOR PLANNIG DEPARTMENT.,191000,Facilities Advertising
South Lakeland District Council,http://opendatacommunities.org/id/district-council/south-lakeland,31/08/2014,Social Enterprise Admin,Cultural Environmental Regulatory & Planning Services,http://opendatacommunities.org/def/concept/finance/sercop/objective/104,NEWSQUEST MEDIA GROUP LTD,03102566,27-08-2014,0000042450,95,0,PUBLIC NOTICES FOR PLANNIG DEPARTMENT.,191000,Facilities Advertising
South Lakeland District Council,http://opendatacommunities.org/id/district-council/south-lakeland,31/08/2014,Business Support Community Services,Internal Trading Accounts,,DENNIS EAGLE LTD,03794455,11-08-2014,0000042534,102.27,0,Switches,381300,Vehicle Mgt Industrial
South Lakeland District Council,http://opendatacommunities.org/id/district-council/south-lakeland,31/08/2014,Social Enterprise Admin,Highways & Transport Services,http://opendatacommunities.org/def/concept/finance/sercop/objective/107,CONTINENTAL LANDSCAPES LTD,2108452,18-08-2014,0000042538,11.89,0,Grounds maintenance 14-15,391310,Construction Open Spaces Construction
South Lakeland District Council,http://opendatacommunities.org/id/district-council/south-lakeland,31/08/2014,Social Enterprise Admin,Highways & Transport Services,http://opendatacommunities.org/def/concept/finance/sercop/objective/107,CONTINENTAL LANDSCAPES LTD,2108452,18-08-2014,0000042538,11.89,0,Grounds maintenance 14-15,391310,Construction Open Spaces Construction
South Lakeland District Council,http://opendatacommunities.org/id/district-council/south-lakeland,31/08/2014,Social Enterprise Admin,Highways & Transport Services,http://opendatacommunities.org/def/concept/finance/sercop/objective/107,CONTINENTAL LANDSCAPES LTD,2108452,18-08-2014,0000042538,1.19,0,Grounds maintenance 14-15,391310,Construction Open Spaces Construction
South Lakeland District Council,http://opendatacommunities.org/id/district-council/south-lakeland,31/08/2014,Social Enterprise Admin,Highways & Transport Services,http://opendatacommunities.org/def/concept/finance/sercop/objective/107,CONTINENTAL LANDSCAPES LTD,2108452,18-08-2014,0000042538,11.89,0,Grounds maintenance 14-15,391310,Construction Open Spaces Construction
South Lakeland District Council,http://opendatacommunities.org/id/district-council/south-lakeland,31/08/2014,Social Enterprise Admin,Highways & Transport Services,http://opendatacommunities.org/def/concept/finance/sercop/objective/107,CONTINENTAL LANDSCAPES LTD,2108452,18-08-2014,0000042538,11.89,0,Grounds maintenance 14-15,391310,Construction Open Spaces Construction
South Lakeland District Council,http://opendatacommunities.org/id/district-council/south-lakeland,31/08/2014,Social Enterprise Admin,Highways & Transport Services,http://opendatacommunities.org/def/concept/finance/sercop/objective/107,CONTINENTAL LANDSCAPES LTD,2108452,18-08-2014,0000042538,11.89,0,Grounds maintenance 14-15,391310,Construction Open Spaces Construction
South Lakeland District Council,http://opendatacommunities.org/id/district-council/south-lakeland,31/08/2014,Social Enterprise Admin,Highways & Transport Services,http://opendatacommunities.org/def/concept/finance/sercop/objective/107,CONTINENTAL LANDSCAPES LTD,2108452,18-08-2014,0000042538,35.67,0,Grounds maintenance 14-15,391310,Construction Open Spaces Construction
South Lakeland District Council,http://opendatacommunities.org/id/district-council/south-lakeland,31/08/2014,Social Enterprise Admin,Highways & Transport Services,http://opendatacommunities.org/def/concept/finance/sercop/objective/107,CONTINENTAL LANDSCAPES LTD,2108452,18-08-2014,0000042538,237.8,0,Grounds maintenance 14-15,391310,Construction Open Spaces Construction
South Lakeland District Council,http://opendatacommunities.org/id/district-council/south-lakeland,31/08/2014,Social Enterprise Admin,Highways & Transport Services,http://opendatacommunities.org/def/concept/finance/sercop/objective/107,CONTINENTAL LANDSCAPES LTD,2108452,18-08-2014,0000042538,148.62,0,Grounds maintenance 14-15,391310,Construction Open Spaces Construction
South Lakeland District Council,http://opendatacommunities.org/id/district-council/south-lakeland,31/08/2014,Social Enterprise Admin,Highways & Transport Services,http://opendatacommunities.org/def/concept/finance/sercop/objective/107,CONTINENTAL LANDSCAPES LTD,2108452,18-08-2014,0000042538,5.94,0,Grounds maintenance 14-15,391310,Construction Open Spaces Construction
South Lakeland District Council,http://opendatacommunities.org/id/district-council/south-lakeland,31/08/2014,Social Enterprise Admin,Highways & Transport Services,http://opendatacommunities.org/def/concept/finance/sercop/objective/107,CONTINENTAL LANDSCAPES LTD,2108452,18-08-2014,0000042538,59.45,0,Grounds maintenance 14-15,391310,Construction Open Spaces Construction
South Lakeland District Council,http://opendatacommunities.org/id/district-council/south-lakeland,31/08/2014,Social Enterprise Admin,Highways & Transport Services,http://opendatacommunities.org/def/concept/finance/sercop/objective/107,CONTINENTAL LANDSCAPES LTD,2108452,18-08-2014,0000042538,59.45,0,Grounds maintenance 14-15,391310,Construction Open Spaces Construction
South Lakeland District Council,http://opendatacommunities.org/id/district-council/south-lakeland,31/08/2014,Social Enterprise Admin,Highways & Transport Services,http://opendatacommunities.org/def/concept/finance/sercop/objective/107,CONTINENTAL LANDSCAPES LTD,2108452,18-08-2014,0000042538,118.9,0,Grounds maintenance 14-15,391310,Construction Open Spaces Construction
South Lakeland District Council,http://opendatacommunities.org/id/district-council/south-lakeland,31/08/2014,Social Enterprise Admin,Highways & Transport Services,http://opendatacommunities.org/def/concept/finance/sercop/objective/107,CONTINENTAL LANDSCAPES LTD,2108452,18-08-2014,0000042538,47.56,0,Grounds maintenance 14-15,391310,Construction Open Spaces Construction
South Lakeland District Council,http://opendatacommunities.org/id/district-council/south-lakeland,31/08/2014,Social Enterprise Admin,Highways & Transport Services,http://opendatacommunities.org/def/concept/finance/sercop/objective/107,CONTINENTAL LANDSCAPES LTD,2108452,18-08-2014,0000042538,5.94,0,Grounds maintenance 14-15,391310,Construction Open Spaces Construction
South Lakeland District Council,http://opendatacommunities.org/id/district-council/south-lakeland,31/08/2014,Social Enterprise Admin,Highways & Transport Services,http://opendatacommunities.org/def/concept/finance/sercop/objective/107,CONTINENTAL LANDSCAPES LTD,2108452,18-08-2014,0000042538,5.94,0,Grounds maintenance 14-15,391310,Construction Open Spaces Construction
South Lakeland District Council,http://opendatacommunities.org/id/district-council/south-lakeland,31/08/2014,Social Enterprise Admin,Highways & Transport Services,http://opendatacommunities.org/def/concept/finance/sercop/objective/107,CONTINENTAL LANDSCAPES LTD,2108452,18-08-2014,0000042538,2.97,0,Grounds maintenance 14-15,391310,Construction Open Spaces Construction
South Lakeland District Council,http://opendatacommunities.org/id/district-council/south-lakeland,31/08/2014,Social Enterprise Admin,Highways & Transport Services,http://opendatacommunities.org/def/concept/finance/sercop/objective/107,CONTINENTAL LANDSCAPES LTD,2108452,18-08-2014,0000042538,59.45,0,Grounds maintenance 14-15,391310,Construction Open Spaces Construction
South Lakeland District Council,http://opendatacommunities.org/id/district-council/south-lakeland,31/08/2014,Social Enterprise Admin,Highways & Transport Services,http://opendatacommunities.org/def/concept/finance/sercop/objective/107,CONTINENTAL LANDSCAPES LTD,2108452,18-08-2014,0000042538,53.5,0,Grounds maintenance 14-15,391310,Construction Open Spaces Construction
South Lakeland District Council,http://opendatacommunities.org/id/district-council/south-lakeland,31/08/2014,Social Enterprise Admin,Highways & Transport Services,http://opendatacommunities.org/def/concept/finance/sercop/objective/107,CONTINENTAL LANDSCAPES LTD,2108452,18-08-2014,0000042538,65.39,0,Grounds maintenance 14-15,391310,Construction Open Spaces Construction
South Lakeland District Council,http://opendatacommunities.org/id/district-council/south-lakeland,31/08/2014,Social Enterprise Admin,Highways & Transport Services,http://opendatacommunities.org/def/concept/finance/sercop/objective/107,CONTINENTAL LANDSCAPES LTD,2108452,18-08-2014,0000042538,124.84,0,Grounds maintenance 14-15,391310,Construction Open Spaces Construction
South Lakeland District Council,http://opendatacommunities.org/id/district-council/south-lakeland,31/08/2014,Social Enterprise Admin,Highways & Transport Services,http://opendatacommunities.org/def/concept/finance/sercop/objective/107,CONTINENTAL LANDSCAPES LTD,2108452,18-08-2014,0000042538,118.9,0,Grounds maintenance 14-15,391310,Construction Open Spaces Construction
South Lakeland District Council,http://opendatacommunities.org/id/district-council/south-lakeland,31/08/2014,Social Enterprise Admin,Highways & Transport Services,http://opendatacommunities.org/def/concept/finance/sercop/objective/107,CONTINENTAL LANDSCAPES LTD,2108452,18-08-2014,0000042538,11.89,0,Grounds maintenance 14-15,391310,Construction Open Spaces Construction
South Lakeland District Council,http://opendatacommunities.org/id/district-council/south-lakeland,31/08/2014,Social Enterprise Admin,Highways & Transport Services,http://opendatacommunities.org/def/concept/finance/sercop/objective/107,CONTINENTAL LANDSCAPES LTD,2108452,18-08-2014,0000042538,11.89,0,Grounds maintenance 14-15,391310,Construction Open Spaces Construction
South Lakeland District Council,http://opendatacommunities.org/id/district-council/south-lakeland,31/08/2014,Social Enterprise Admin,Highways & Transport Services,http://opendatacommunities.org/def/concept/finance/sercop/objective/107,CONTINENTAL LANDSCAPES LTD,2108452,18-08-2014,0000042538,35.67,0,Grounds maintenance 14-15,391310,Construction Open Spaces Construction
South Lakeland District Council,http://opendatacommunities.org/id/district-council/south-lakeland,31/08/2014,Social Enterprise Admin,Highways & Transport Services,http://opendatacommunities.org/def/concept/finance/sercop/objective/107,CONTINENTAL LANDSCAPES LTD,2108452,18-08-2014,0000042538,59.45,0,Grounds maintenance 14-15,391310,Construction Open Spaces Construction
South Lakeland District Council,http://opendatacommunities.org/id/district-council/south-lakeland,31/08/2014,Social Enterprise Admin,Highways & Transport Services,http://opendatacommunities.org/def/concept/finance/sercop/objective/107,CONTINENTAL LANDSCAPES LTD,2108452,18-08-2014,0000042538,105.76,0,Grounds maintenance 14-15,391310,Construction Open Spaces Construction
South Lakeland District Council,http://opendatacommunities.org/id/district-council/south-lakeland,31/08/2014,Social Enterprise Admin,Highways & Transport Services,http://opendatacommunities.org/def/concept/finance/sercop/objective/107,CONTINENTAL LANDSCAPES LTD,2108452,18-08-2014,0000042538,118.9,0,Grounds maintenance 14-15,391310,Construction Open Spaces Construction
South Lakeland District Council,http://opendatacommunities.org/id/district-council/south-lakeland,31/08/2014,Social Enterprise Admin,Highways & Transport Services,http://opendatacommunities.org/def/concept/finance/sercop/objective/107,CONTINENTAL LANDSCAPES LTD,2108452,18-08-2014,0000042538,219.96,0,Grounds maintenance 14-15,391310,Construction Open Spaces Construction
South Lakeland District Council,http://opendatacommunities.org/id/district-council/south-lakeland,31/08/2014,Social Enterprise Admin,Highways & Transport Services,http://opendatacommunities.org/def/concept/finance/sercop/objective/107,CONTINENTAL LANDSCAPES LTD,2108452,18-08-2014,0000042538,118.9,0,Grounds maintenance 14-15,391310,Construction Open Spaces Construction
South Lakeland District Council,http://opendatacommunities.org/id/district-council/south-lakeland,31/08/2014,Social Enterprise Admin,Highways & Transport Services,http://opendatacommunities.org/def/concept/finance/sercop/objective/107,CONTINENTAL LANDSCAPES LTD,2108452,18-08-2014,0000042538,178.35,0,Grounds maintenance 14-15,391310,Construction Open Spaces Construction
South Lakeland District Council,http://opendatacommunities.org/id/district-council/south-lakeland,31/08/2014,Social Enterprise Admin,Cultural Environmental Regulatory & Planning Services,http://opendatacommunities.org/def/concept/finance/sercop/objective/104,CONTINENTAL LANDSCAPES LTD,2108452,18-08-2014,0000042538,9511.8,0,Grounds maintenance 14-15,391310,Construction Open Spaces Construction
South Lakeland District Council,http://opendatacommunities.org/id/district-council/south-lakeland,31/08/2014,Social Enterprise Admin,Cultural Environmental Regulatory & Planning Services,http://opendatacommunities.org/def/concept/finance/sercop/objective/104,CONTINENTAL LANDSCAPES LTD,2108452,18-08-2014,0000042538,1376.6,0,Grounds maintenance 14-15,391310,Construction Open Spaces Construction
South Lakeland District Council,http://opendatacommunities.org/id/district-council/south-lakeland,31/08/2014,Social Enterprise Admin,Cultural Environmental Regulatory & Planning Services,http://opendatacommunities.org/def/concept/finance/sercop/objective/104,CONTINENTAL LANDSCAPES LTD,2108452,18-08-2014,0000042538,23.78,0,Grounds maintenance 14-15,391310,Construction Open Spaces Construction
South Lakeland District Council,http://opendatacommunities.org/id/district-council/south-lakeland,31/08/2014,Social Enterprise Admin,Cultural Environmental Regulatory & Planning Services,http://opendatacommunities.org/def/concept/finance/sercop/objective/104,CONTINENTAL LANDSCAPES LTD,2108452,18-08-2014,0000042538,45478.3,0,Grounds maintenance 14-15,391310,Construction Open Spaces Construction
South Lakeland District Council,http://opendatacommunities.org/id/district-council/south-lakeland,31/08/2014,Social Enterprise Admin,Cultural Environmental Regulatory & Planning Services,http://opendatacommunities.org/def/concept/finance/sercop/objective/104,CONTINENTAL LANDSCAPES LTD,2108452,18-08-2014,0000042538,2259.05,0,Grounds maintenance 14-15,391310,Construction Open Spaces Construction
South Lakeland District Council,http://opendatacommunities.org/id/district-council/south-lakeland,31/08/2014,Social Enterprise Admin,External Trading Accounts,,CONTINENTAL LANDSCAPES LTD,2108452,18-08-2014,0000042538,104.04,0,Grounds maintenance 14-15,391310,Construction Open Spaces Construction
South Lakeland District Council,http://opendatacommunities.org/id/district-council/south-lakeland,31/08/2014,Social Enterprise Admin,Central Services,http://opendatacommunities.org/def/concept/finance/sercop/objective/102,CUMBRIA WASTE RECYCLING LTD,03162439,18-08-2014,0000042557,28.28,0,Langstone House 360 ltr Wheelie Bin,182012,Environment Waste Management Recycling
South Lakeland District Council,http://opendatacommunities.org/id/district-council/south-lakeland,31/08/2014,Social Enterprise Admin,Central Services,http://opendatacommunities.org/def/concept/finance/sercop/objective/102,CUMBRIA WASTE RECYCLING LTD,03162439,18-08-2014,0000042565,199.8,0,Wheelie bin and skip emptying South,182012,Environment Waste Management Recycling
South Lakeland District Council,http://opendatacommunities.org/id/district-council/south-lakeland,31/08/2014,Social Enterprise Admin,Central Services,http://opendatacommunities.org/def/concept/finance/sercop/objective/102,CUMBRIA WASTE RECYCLING LTD,03162439,18-08-2014,0000042567,130.64,0,Ulverston Town Hall Queen Street wheelie,182012,Environment Waste Management Recycling
South Lakeland District Council,http://opendatacommunities.org/id/district-council/south-lakeland,31/08/2014,Social Enterprise Admin,Highways & Transport Services,http://opendatacommunities.org/def/concept/finance/sercop/objective/107,CUMBRIA WASTE RECYCLING LTD,03162439,18-08-2014,0000042569,45.24,0,Westmorland Multi Storey 660 ltr Wheelie,182012,Environment Waste Management Recycling
South Lakeland District Council,http://opendatacommunities.org/id/district-council/south-lakeland,31/08/2014,Social Enterprise Admin,Central Services,http://opendatacommunities.org/def/concept/finance/sercop/objective/102,NORTHGATE VEHICLE HIRE LTD,01434157,06-08-2014,0000042576,15.14,0,Car hire for Monday 14th,381600,Vehicle Mgt Leasing
South Lakeland District Council,http://opendatacommunities.org/id/district-council/south-lakeland,31/08/2014,Financial Services,Central Services,http://opendatacommunities.org/def/concept/finance/sercop/objective/102,GREATER MANCHESTER PENSION FUND,,28-07-2014,0000042612,274.84,0,Qtr contribution re past pensions,908999,Public Bodies Not Elsewhere Classified
South Lakeland District Council,http://opendatacommunities.org/id/district-council/south-lakeland,31/08/2014,Business Support Community Services,Internal Trading Accounts,,Harry Park Tyres Ltd,08131208,11-08-2014,0000042679,599.4,0,Tyres,381500,Vehicle Mgt Parts
South Lakeland District Council,http://opendatacommunities.org/id/district-council/south-lakeland,31/08/2014,Business Support Community Services,Internal Trading Accounts,,Harry Park Tyres Ltd,08131208,11-08-2014,0000042680,70.5,0,Tyres,381500,Vehicle Mgt Parts
South Lakeland District Council,http://opendatacommunities.org/id/district-council/south-lakeland,31/08/2014,Business Support Community Services,Cultural Environmental Regulatory & Planning Services,http://opendatacommunities.org/def/concept/finance/sercop/objective/104,UNITED UTILITIES WATER PLC,2366678,11-08-2014,0000042694,1442.8,0,PWS Analysis June 2014,371300,Utilities Water
South Lakeland District Council,http://opendatacommunities.org/id/district-council/south-lakeland,31/08/2014,Social Enterprise Admin,Cultural Environmental Regulatory & Planning Services,http://opendatacommunities.org/def/concept/finance/sercop/objective/104,NEWSQUEST MEDIA GROUP LTD,03102566,06-08-2014,0000042695,113,0,PUBLIC NOTICES FOR PLANNIG DEPARTMENT.,191000,Facilities Advertising
South Lakeland District Council,http://opendatacommunities.org/id/district-council/south-lakeland,31/08/2014,Social Enterprise Admin,Cultural Environmental Regulatory & Planning Services,http://opendatacommunities.org/def/concept/finance/sercop/objective/104,Cleartrack (EvL) Ltd,03881690,13-08-2014,0000042698,475,0,Relating to Quotation for works at,199999,Facilities Not Elsewhere Classified
South Lakeland District Council,http://opendatacommunities.org/id/district-council/south-lakeland,31/08/2014,Social Enterprise Admin,Central Services,http://opendatacommunities.org/def/concept/finance/sercop/objective/102,Masterstaff Limited,02777593,04-08-2014,0000042699,438.8,0,T0 SUPPLY LOCAL LAND,261300,HR Recruitment & Assessment
South Lakeland District Council,http://opendatacommunities.org/id/district-council/south-lakeland,31/08/2014,Social Enterprise Admin,Central Services,http://opendatacommunities.org/def/concept/finance/sercop/objective/102,ADECCO UK LIMITED,00593232,04-08-2014,0000042702,530.21,0,TEMPORARY GAZETTEER OFFICER,261400,HR Temporary & Agency Staff
South Lakeland District Council,http://opendatacommunities.org/id/district-council/south-lakeland,31/08/2014,Coronation Hall,External Trading Accounts,,Morson International,,04-08-2014,0000042714,99.4,0,Ulverston Market Hall cleaner from April,261300,HR Recruitment & Assessment
South Lakeland District Council,http://opendatacommunities.org/id/district-council/south-lakeland,31/08/2014,Business Support Community Services,Internal Trading Accounts,,DENNIS EAGLE LTD,03794455,11-08-2014,0000042721,49.53,0,Switches,381300,Vehicle Mgt Industrial
South Lakeland District Council,http://opendatacommunities.org/id/district-council/south-lakeland,31/08/2014,Business Support Community Services,Internal Trading Accounts,,DENNIS EAGLE LTD,03794455,11-08-2014,0000042722,115.59,0,Switches,381300,Vehicle Mgt Industrial
South Lakeland District Council,http://opendatacommunities.org/id/district-council/south-lakeland,31/08/2014,Business Support Community Services,Internal Trading Accounts,,DENNIS EAGLE LTD,03794455,11-08-2014,0000042723,90.2,0,Switches,381300,Vehicle Mgt Industrial
South Lakeland District Council,http://opendatacommunities.org/id/district-council/south-lakeland,31/08/2014,Legal Services,Central Services,http://opendatacommunities.org/def/concept/finance/sercop/objective/102,WEIGHTMANS LLP,OC326117,04-08-2014,0000042727,1166,0,Fees incurred for Mr,281300,Legal Services Legal Opinion
South Lakeland District Council,http://opendatacommunities.org/id/district-council/south-lakeland,31/08/2014,Legal Services,Central Services,http://opendatacommunities.org/def/concept/finance/sercop/objective/102,VENN GROUP RECRUITMENT SOLUTIONS,,13-08-2014,0000042728,996.58,0,Wages for w/k ending,261400,HR Temporary & Agency Staff
South Lakeland District Council,http://opendatacommunities.org/id/district-council/south-lakeland,31/08/2014,Business Support Community Services,Internal Trading Accounts,,ARCO LIMITED,00133804,11-08-2014,0000042729,463.6,0,Eez wipes,141100,Clothing Protective
South Lakeland District Council,http://opendatacommunities.org/id/district-council/south-lakeland,31/08/2014,ICT Group,Central Services,http://opendatacommunities.org/def/concept/finance/sercop/objective/102,PROBRAND LTD,02653446,13-08-2014,0000042730,184.1,0,VUW043/MV3000010-B-LK-5E    V7 - 1000dpi,271600,ICT Software Customised & Bespoke
South Lakeland District Council,http://opendatacommunities.org/id/district-council/south-lakeland,31/08/2014,Social Enterprise Admin,Highways & Transport Services,http://opendatacommunities.org/def/concept/finance/sercop/objective/107,THE SIGN MAN,05748839,18-08-2014,0000042738,50,0,50 stickers as discussed with ,102400,Building Signage
South Lakeland District Council,http://opendatacommunities.org/id/district-council/south-lakeland,31/08/2014,Development Management,Cultural Environmental Regulatory & Planning Services,http://opendatacommunities.org/def/concept/finance/sercop/objective/104,CHRIS BOWKER LTD,01642561,04-08-2014,0000042743,62,0,Check of electrical work under Part P of,101100,Building Electrical
South Lakeland District Council,http://opendatacommunities.org/id/district-council/south-lakeland,31/08/2014,Printing Section,Central Services,http://opendatacommunities.org/def/concept/finance/sercop/objective/102,ROSEFOX PAPER LIMITED,01655083,11-08-2014,0000042771,29.58,0,Paper one A4 80gsm,341000,Stationery Paper
South Lakeland District Council,http://opendatacommunities.org/id/district-council/south-lakeland,31/08/2014,Printing Section,Central Services,http://opendatacommunities.org/def/concept/finance/sercop/objective/102,ROSEFOX PAPER LIMITED,01655083,13-08-2014,0000042772,64.47,0,A4 160gsm Pale Yellow,341000,Stationery Paper
South Lakeland District Council,http://opendatacommunities.org/id/district-council/south-lakeland,31/08/2014,Social Enterprise Admin,Cultural Environmental Regulatory & Planning Services,http://opendatacommunities.org/def/concept/finance/sercop/objective/104,FURNESS NEWSPAPERS LTD,01155841,04-08-2014,0000042773,124.32,0,PUBLIC NOTICES FOR PLANNING DEPARTMENT,191000,Facilities Advertising
South Lakeland District Council,http://opendatacommunities.org/id/district-council/south-lakeland,31/08/2014,Business Support Community Services,Internal Trading Accounts,,ARCO LIMITED,00133804,11-08-2014,0000042774,159.72,0,Gloves,141100,Clothing Protective
South Lakeland District Council,http://opendatacommunities.org/id/district-council/south-lakeland,31/08/2014,Social Enterprise Admin,Cultural Environmental Regulatory & Planning Services,http://opendatacommunities.org/def/concept/finance/sercop/objective/104,CAPITA SYMONDS LTD,03173410,04-08-2014,0000042775,2374.5,0,ARBORICULTURE SERVICES PROVIDED BY,390000,Construction
South Lakeland District Council,http://opendatacommunities.org/id/district-council/south-lakeland,31/08/2014,Business Support Community Services,Internal Trading Accounts,,ARCO LIMITED,00133804,11-08-2014,0000042789,150,0,Small SLDC logos,141100,Clothing Protective
South Lakeland District Council,http://opendatacommunities.org/id/district-council/south-lakeland,31/08/2014,Business Support Community Services,Internal Trading Accounts,,ARCO LIMITED,00133804,11-08-2014,0000042790,71.25,0,Eez wipes,141100,Clothing Protective
South Lakeland District Council,http://opendatacommunities.org/id/district-council/south-lakeland,31/08/2014,Business Support Community Services,Internal Trading Accounts,,ARCO LIMITED,00133804,11-08-2014,0000042790,220.19,0,Eez wipes,141100,Clothing Protective
South Lakeland District Council,http://opendatacommunities.org/id/district-council/south-lakeland,31/08/2014,Social Enterprise Admin,Cultural Environmental Regulatory & Planning Services,http://opendatacommunities.org/def/concept/finance/sercop/objective/104,CUMBRIA COUNTY COUNCIL,,13-08-2014,0000042795,50,0,"Rent for playground at Castle Field,",908000,Public Bodies Council support services
South Lakeland District Council,http://opendatacommunities.org/id/district-council/south-lakeland,31/08/2014,Development Strategy,Housing Services,http://opendatacommunities.org/def/concept/finance/sercop/objective/108,MORGAN HUNT UK LIMITED,04349535,04-08-2014,0000042796,1530.32,0,work for South,269999,HR Not Elsewhere Classified
South Lakeland District Council,http://opendatacommunities.org/id/district-council/south-lakeland,31/08/2014,Development Implementation,Cultural Environmental Regulatory & Planning Services,http://opendatacommunities.org/def/concept/finance/sercop/objective/104,AHA! DISTRIBUTION LTD,,13-08-2014,0000042797,200,0,Display Kendal guides at Sunderland,191000,Facilities Advertising
South Lakeland District Council,http://opendatacommunities.org/id/district-council/south-lakeland,31/08/2014,Business Support Community Services,Internal Trading Accounts,,CUMBRIA WASTE RECYCLING LTD,03162439,04-08-2014,0000042798,1365,0,Skip emptying at Ecclerigg - June,182012,Environment Waste Management Recycling
South Lakeland District Council,http://opendatacommunities.org/id/district-council/south-lakeland,31/08/2014,Customer Services,Central Services,http://opendatacommunities.org/def/concept/finance/sercop/objective/102,Giles Brown,,04-08-2014,0000042801,1210,0,11 days working for Communications,261400,HR Temporary & Agency Staff
South Lakeland District Council,http://opendatacommunities.org/id/district-council/south-lakeland,31/08/2014,Business Support Community Services,Internal Trading Accounts,,Masterstaff Limited,02777593,04-08-2014,0000042802,480,0, - July 2014,261300,HR Recruitment & Assessment
South Lakeland District Council,http://opendatacommunities.org/id/district-council/south-lakeland,31/08/2014,Lake Wardens,Cultural Environmental Regulatory & Planning Services,http://opendatacommunities.org/def/concept/finance/sercop/objective/104,RIBBLESDALE AUTO ELECTRICS 1992 LTD,02732686,06-08-2014,0000042803,12.5,0,5 Metre Length of SBS 35 Twin Cable,381500,Vehicle Mgt Parts
South Lakeland District Council,http://opendatacommunities.org/id/district-council/south-lakeland,31/08/2014,Revenues and Benefits,Central Services,http://opendatacommunities.org/def/concept/finance/sercop/objective/102,MERITEC LTD,03224622,18-08-2014,0000042804,418.5,0,RAB Processing Contract and Agency,391200,Construction Engineering
South Lakeland District Council,http://opendatacommunities.org/id/district-council/south-lakeland,31/08/2014,Business Support Community Services,Internal Trading Accounts,,GARWOOD EUROPE LTD,04333504,13-08-2014,0000042805,29.56,0,Switches,182011,Environment Waste Management Consumables
South Lakeland District Council,http://opendatacommunities.org/id/district-council/south-lakeland,31/08/2014,Business Support Community Services,Internal Trading Accounts,,Masterstaff Limited,02777593,04-08-2014,0000042806,1315.56,0, - July 2014,261300,HR Recruitment & Assessment
South Lakeland District Council,http://opendatacommunities.org/id/district-council/south-lakeland,31/08/2014,Financial Services,Central Services,http://opendatacommunities.org/def/concept/finance/sercop/objective/102,CUMBRIA COUNTY COUNCIL,,13-08-2014,0000042807,15300,0,Internal Audit Service,908000,Public Bodies Council support services
South Lakeland District Council,http://opendatacommunities.org/id/district-council/south-lakeland,31/08/2014,Financial Services,Central Services,http://opendatacommunities.org/def/concept/finance/sercop/objective/102,Capita Secure Information Solutions Ltd,01593831,13-08-2014,0000042808,1900,0,Oracle to SQL Server migration of test,271600,ICT Software Customised & Bespoke
South Lakeland District Council,http://opendatacommunities.org/id/district-council/south-lakeland,31/08/2014,Business Support Community Services,Internal Trading Accounts,,BRIAN ARMISTEAD LTD T/A SINKFALL RECYCLI,04133280,11-08-2014,0000042809,1310.4,0,Green waste tipping - April (estimated),391110,Construction Buildings Construction
South Lakeland District Council,http://opendatacommunities.org/id/district-council/south-lakeland,31/08/2014,Business Support Community Services,Internal Trading Accounts,,CUMBRIA WASTE RECYCLING LTD,03162439,04-08-2014,0000042810,210,0,Skip emptying at Ecclerigg - June,182012,Environment Waste Management Recycling
South Lakeland District Council,http://opendatacommunities.org/id/district-council/south-lakeland,31/08/2014,Development Implementation,Central Services,http://opendatacommunities.org/def/concept/finance/sercop/objective/102,C M SIGNS,,20-08-2014,0000042811,262,0,Signs for the Lido at Grange (as agreed,102400,Building Signage
South Lakeland District Council,http://opendatacommunities.org/id/district-council/south-lakeland,31/08/2014,Business Support Community Services,Cultural Environmental Regulatory & Planning Services,http://opendatacommunities.org/def/concept/finance/sercop/objective/104,OCS GROUP LTD T/A CANNON HYGIENE LTD,01298292,18-08-2014,0000042812,12,0,Clinical waste collections - July,131011,Cleaning & Janitorial Cleaning Materials
South Lakeland District Council,http://opendatacommunities.org/id/district-council/south-lakeland,31/08/2014,Customer Services,Cultural Environmental Regulatory & Planning Services,http://opendatacommunities.org/def/concept/finance/sercop/objective/104,RIGHT 2 WORK,,04-08-2014,0000042813,2352,0,Bulky waste removal from April 2014 to,321010,Social Care Adult Advice & Counselling
South Lakeland District Council,http://opendatacommunities.org/id/district-council/south-lakeland,31/08/2014,Business Support Community Services,Cultural Environmental Regulatory & Planning Services,http://opendatacommunities.org/def/concept/finance/sercop/objective/104,OCS GROUP LTD T/A CANNON HYGIENE LTD,01298292,18-08-2014,0000042814,12,0,Clinical waste collections - July,131011,Cleaning & Janitorial Cleaning Materials
South Lakeland District Council,http://opendatacommunities.org/id/district-council/south-lakeland,31/08/2014,Business Support Community Services,Internal Trading Accounts,,CUMBRIA TRUCK CENTRE LTD,04298488,18-08-2014,0000042816,541.12,0,Cooler,381300,Vehicle Mgt Industrial
South Lakeland District Council,http://opendatacommunities.org/id/district-council/south-lakeland,31/08/2014,Development Implementation,Cultural Environmental Regulatory & Planning Services,http://opendatacommunities.org/def/concept/finance/sercop/objective/104,CUMBRIA COUNTY COUNCIL,,04-08-2014,0000042820,5000,0,Contribution to LEP.,908000,Public Bodies Council support services
South Lakeland District Council,http://opendatacommunities.org/id/district-council/south-lakeland,31/08/2014,Social Enterprise Admin,Highways & Transport Services,http://opendatacommunities.org/def/concept/finance/sercop/objective/107,ALLSTAR BUSINESS SOLUTIONS LTD (NCR),2631112,01-08-2014,0000042821,191.39,0,Fuel for car parks' vehicles starting 1,381600,Vehicle Mgt Leasing
South Lakeland District Council,http://opendatacommunities.org/id/district-council/south-lakeland,31/08/2014,Social Enterprise Admin,Cultural Environmental Regulatory & Planning Services,http://opendatacommunities.org/def/concept/finance/sercop/objective/104,ALLSTAR BUSINESS SOLUTIONS LTD (NCR),2631112,01-08-2014,0000042822,72.92,0,Fuel for Parks vehicle PX63 KSN April,381600,Vehicle Mgt Leasing
South Lakeland District Council,http://opendatacommunities.org/id/district-council/south-lakeland,31/08/2014,Social Enterprise Admin,Central Services,http://opendatacommunities.org/def/concept/finance/sercop/objective/102,ADECCO UK LIMITED,00593232,11-08-2014,0000042823,530.21,0,TEMPORARY GAZETTEER OFFICER,261400,HR Temporary & Agency Staff
South Lakeland District Council,http://opendatacommunities.org/id/district-council/south-lakeland,31/08/2014,Business Support Community Services,Housing Services,http://opendatacommunities.org/def/concept/finance/sercop/objective/108,ADECCO UK LIMITED,00593232,06-08-2014,0000042824,103.8,0,Cleaner for Town View Fields,261400,HR Temporary & Agency Staff
South Lakeland District Council,http://opendatacommunities.org/id/district-council/south-lakeland,31/08/2014,Electoral Services,Central Services,http://opendatacommunities.org/def/concept/finance/sercop/objective/102,ROYAL MAIL GROUP PLC,,04-08-2014,0000042825,3740.93,0,Postage Returns on Euro Postal Votes,301200,Mail Services� Postage
South Lakeland District Council,http://opendatacommunities.org/id/district-council/south-lakeland,31/08/2014,Electoral Services,Central Services,http://opendatacommunities.org/def/concept/finance/sercop/objective/102,ROYAL MAIL GROUP PLC,,04-08-2014,0000042826,734.33,0,PV Returns District Elections,301200,Mail Services� Postage
South Lakeland District Council,http://opendatacommunities.org/id/district-council/south-lakeland,31/08/2014,Social Enterprise Admin,Highways & Transport Services,http://opendatacommunities.org/def/concept/finance/sercop/objective/107,Masterstaff Limited,02777593,04-08-2014,0000042828,350.4,0,Cover for cleaner in Westmorland SC car,261300,HR Recruitment & Assessment
South Lakeland District Council,http://opendatacommunities.org/id/district-council/south-lakeland,31/08/2014,Revenues and Benefits,SLDC as Agent,,ROYAL MAIL GROUP PLC,,04-08-2014,0000042829,1215.23,0,2014-15  Postal Charges a/c 0198123013,301200,Mail Services� Postage
South Lakeland District Council,http://opendatacommunities.org/id/district-council/south-lakeland,31/08/2014,Social Enterprise Admin,Cultural Environmental Regulatory & Planning Services,http://opendatacommunities.org/def/concept/finance/sercop/objective/104,Matchtech,02526418,11-08-2014,0000042831,1068.19,0,TO SUPPLY DEVELOPMENT CONTROL TEAM,261300,HR Recruitment & Assessment
South Lakeland District Council,http://opendatacommunities.org/id/district-council/south-lakeland,31/08/2014,Financial Services,Central Services,http://opendatacommunities.org/def/concept/finance/sercop/objective/102,NORTH WEST EMPLOYERS,,04-08-2014,0000042832,4488.61,0,Subscriptions 2014/15,261500,HR Training & Conferences
South Lakeland District Council,http://opendatacommunities.org/id/district-council/south-lakeland,31/08/2014,Business Support Community Services,Cultural Environmental Regulatory & Planning Services,http://opendatacommunities.org/def/concept/finance/sercop/objective/104,EDEN DISTRICT COUNCIL,,04-08-2014,0000042834,246,0,Contribution to website for Appleby,908000,Public Bodies Council support services
South Lakeland District Council,http://opendatacommunities.org/id/district-council/south-lakeland,31/08/2014,Lake Wardens,Cultural Environmental Regulatory & Planning Services,http://opendatacommunities.org/def/concept/finance/sercop/objective/104,AJN Refurbishment Services Ltd,08248260,04-08-2014,0000042835,1179,0,Supply & Fitting of,191700,Facilities Property Management
South Lakeland District Council,http://opendatacommunities.org/id/district-council/south-lakeland,31/08/2014,Business Support Community Services,Housing Services,http://opendatacommunities.org/def/concept/finance/sercop/objective/108,Landlord,,04-08-2014,0000042836,600,0,Monthly rent ,250000,Housing
South Lakeland District Council,http://opendatacommunities.org/id/district-council/south-lakeland,31/08/2014,Business Support Community Services,Housing Services,http://opendatacommunities.org/def/concept/finance/sercop/objective/108,Landlord,,04-08-2014,0000042837,350,0,Monthly rent ,250000,Housing
South Lakeland District Council,http://opendatacommunities.org/id/district-council/south-lakeland,31/08/2014,Human Resources,Central Services,http://opendatacommunities.org/def/concept/finance/sercop/objective/102,MIDLAND SOFTWARE LTD,01852206,18-08-2014,0000042838,299,0,Training ,271600,ICT Software Customised & Bespoke
South Lakeland District Council,http://opendatacommunities.org/id/district-council/south-lakeland,31/08/2014,Human Resources,Central Services,http://opendatacommunities.org/def/concept/finance/sercop/objective/102,ANITA OGILVIE,,18-08-2014,0000042839,108,0,Therapeutic Sessions:,269999,HR Not Elsewhere Classified
South Lakeland District Council,http://opendatacommunities.org/id/district-council/south-lakeland,31/08/2014,Business Support Community Services,Cultural Environmental Regulatory & Planning Services,http://opendatacommunities.org/def/concept/finance/sercop/objective/104,ALLSTAR BUSINESS SOLUTIONS LTD (NCR),2631112,01-08-2014,0000042840,39.73,0,Fuel - 15 July 2014,381600,Vehicle Mgt Leasing
South Lakeland District Council,http://opendatacommunities.org/id/district-council/south-lakeland,31/08/2014,Environment and Housing,Housing Services,http://opendatacommunities.org/def/concept/finance/sercop/objective/108,GROWING CONCERNS LTD,,04-08-2014,0000042841,1012.98,0,Payment for Handy Person Scheme,391200,Construction Engineering
South Lakeland District Council,http://opendatacommunities.org/id/district-council/south-lakeland,31/08/2014,Democratic and Member Services,Central Services,http://opendatacommunities.org/def/concept/finance/sercop/objective/102,NORTHGATE VEHICLE HIRE LTD,01434157,11-08-2014,0000042843,391.11,0,Payments for Repairs to Vehicle used at,381600,Vehicle Mgt Leasing
South Lakeland District Council,http://opendatacommunities.org/id/district-council/south-lakeland,31/08/2014,Business Support Community Services,Housing Services,http://opendatacommunities.org/def/concept/finance/sercop/objective/108,E ON ENERGY,04060387,06-08-2014,0000042845,12.59,0,"Electricity Bill for 14 Beast Bank,",379999,Utilities Not Elsewhere Classified
South Lakeland District Council,http://opendatacommunities.org/id/district-council/south-lakeland,31/08/2014,Policy & Partnerships,Cultural Environmental Regulatory & Planning Services,http://opendatacommunities.org/def/concept/finance/sercop/objective/104,CONISTON PARISH COUNCIL,,06-08-2014,0000042846,1500,0,LIP Funding 1500 to Coniston Parish,908000,Public Bodies Council support services
South Lakeland District Council,http://opendatacommunities.org/id/district-council/south-lakeland,31/08/2014,Business Support Community Services,Internal Trading Accounts,,LAKELAND COMMERCIALS LTD,02719162,11-08-2014,0000042848,117,0,Brake tests,361600,Public Transport Taxi Services Home to S
South Lakeland District Council,http://opendatacommunities.org/id/district-council/south-lakeland,31/08/2014,Business Support Community Services,Internal Trading Accounts,,LAKELAND COMMERCIALS LTD,02719162,11-08-2014,0000042848,345,0,Brake tests,361600,Public Transport Taxi Services Home to S
South Lakeland District Council,http://opendatacommunities.org/id/district-council/south-lakeland,31/08/2014,Business Support Community Services,Cultural Environmental Regulatory & Planning Services,http://opendatacommunities.org/def/concept/finance/sercop/objective/104,GB Sign Solutions LTD,09609330,18-08-2014,0000042849,76,0,Mayfield Drive,102400,Building Signage
South Lakeland District Council,http://opendatacommunities.org/id/district-council/south-lakeland,31/08/2014,Printing Section,Central Services,http://opendatacommunities.org/def/concept/finance/sercop/objective/102,ROSEFOX PAPER LIMITED,01655083,13-08-2014,0000042850,9.86,0,A4 160gsm Pale Yellow,341000,Stationery Paper
South Lakeland District Council,http://opendatacommunities.org/id/district-council/south-lakeland,31/08/2014,Coronation Hall,Cultural Environmental Regulatory & Planning Services,http://opendatacommunities.org/def/concept/finance/sercop/objective/104,CHEMICAL DESIGN,,01-09-2014,0000042851,1536,0,Design costs for Autumn/Winter Programme,131010,Cleaning & Janitorial Cleaning Materials
South Lakeland District Council,http://opendatacommunities.org/id/district-council/south-lakeland,31/08/2014,Coronation Hall,Cultural Environmental Regulatory & Planning Services,http://opendatacommunities.org/def/concept/finance/sercop/objective/104,CHEMICAL DESIGN,,01-09-2014,0000042851,1568.4,0,Design costs for Autumn/Winter Programme,131010,Cleaning & Janitorial Cleaning Materials
South Lakeland District Council,http://opendatacommunities.org/id/district-council/south-lakeland,31/08/2014,Social Enterprise Admin,Cultural Environmental Regulatory & Planning Services,http://opendatacommunities.org/def/concept/finance/sercop/objective/104,NEWSQUEST MEDIA GROUP LTD,03102566,13-08-2014,0000042852,113,0,PUBLIC NOTICES FOR PLANNIG DEPARTMENT.,191000,Facilities Advertising
South Lakeland District Council,http://opendatacommunities.org/id/district-council/south-lakeland,31/08/2014,Social Enterprise Admin,Highways & Transport Services,http://opendatacommunities.org/def/concept/finance/sercop/objective/107,CONTINENTAL LANDSCAPES LTD,2108452,18-08-2014,0000042853,11.89,0,Grounds maintenance 14-15,391310,Construction Open Spaces Construction
South Lakeland District Council,http://opendatacommunities.org/id/district-council/south-lakeland,31/08/2014,Social Enterprise Admin,Highways & Transport Services,http://opendatacommunities.org/def/concept/finance/sercop/objective/107,CONTINENTAL LANDSCAPES LTD,2108452,18-08-2014,0000042853,11.89,0,Grounds maintenance 14-15,391310,Construction Open Spaces Construction
South Lakeland District Council,http://opendatacommunities.org/id/district-council/south-lakeland,31/08/2014,Social Enterprise Admin,Highways & Transport Services,http://opendatacommunities.org/def/concept/finance/sercop/objective/107,CONTINENTAL LANDSCAPES LTD,2108452,18-08-2014,0000042853,1.19,0,Grounds maintenance 14-15,391310,Construction Open Spaces Construction
South Lakeland District Council,http://opendatacommunities.org/id/district-council/south-lakeland,31/08/2014,Social Enterprise Admin,Highways & Transport Services,http://opendatacommunities.org/def/concept/finance/sercop/objective/107,CONTINENTAL LANDSCAPES LTD,2108452,18-08-2014,0000042853,11.89,0,Grounds maintenance 14-15,391310,Construction Open Spaces Construction
South Lakeland District Council,http://opendatacommunities.org/id/district-council/south-lakeland,31/08/2014,Social Enterprise Admin,Highways & Transport Services,http://opendatacommunities.org/def/concept/finance/sercop/objective/107,CONTINENTAL LANDSCAPES LTD,2108452,18-08-2014,0000042853,11.89,0,Grounds maintenance 14-15,391310,Construction Open Spaces Construction
South Lakeland District Council,http://opendatacommunities.org/id/district-council/south-lakeland,31/08/2014,Social Enterprise Admin,Highways & Transport Services,http://opendatacommunities.org/def/concept/finance/sercop/objective/107,CONTINENTAL LANDSCAPES LTD,2108452,18-08-2014,0000042853,11.89,0,Grounds maintenance 14-15,391310,Construction Open Spaces Construction
South Lakeland District Council,http://opendatacommunities.org/id/district-council/south-lakeland,31/08/2014,Social Enterprise Admin,Highways & Transport Services,http://opendatacommunities.org/def/concept/finance/sercop/objective/107,CONTINENTAL LANDSCAPES LTD,2108452,18-08-2014,0000042853,35.67,0,Grounds maintenance 14-15,391310,Construction Open Spaces Construction
South Lakeland District Council,http://opendatacommunities.org/id/district-council/south-lakeland,31/08/2014,Social Enterprise Admin,Highways & Transport Services,http://opendatacommunities.org/def/concept/finance/sercop/objective/107,CONTINENTAL LANDSCAPES LTD,2108452,18-08-2014,0000042853,237.8,0,Grounds maintenance 14-15,391310,Construction Open Spaces Construction
South Lakeland District Council,http://opendatacommunities.org/id/district-council/south-lakeland,31/08/2014,Social Enterprise Admin,Highways & Transport Services,http://opendatacommunities.org/def/concept/finance/sercop/objective/107,CONTINENTAL LANDSCAPES LTD,2108452,18-08-2014,0000042853,148.62,0,Grounds maintenance 14-15,391310,Construction Open Spaces Construction
South Lakeland District Council,http://opendatacommunities.org/id/district-council/south-lakeland,31/08/2014,Social Enterprise Admin,Highways & Transport Services,http://opendatacommunities.org/def/concept/finance/sercop/objective/107,CONTINENTAL LANDSCAPES LTD,2108452,18-08-2014,0000042853,5.94,0,Grounds maintenance 14-15,391310,Construction Open Spaces Construction
South Lakeland District Council,http://opendatacommunities.org/id/district-council/south-lakeland,31/08/2014,Social Enterprise Admin,Highways & Transport Services,http://opendatacommunities.org/def/concept/finance/sercop/objective/107,CONTINENTAL LANDSCAPES LTD,2108452,18-08-2014,0000042853,59.45,0,Grounds maintenance 14-15,391310,Construction Open Spaces Construction
South Lakeland District Council,http://opendatacommunities.org/id/district-council/south-lakeland,31/08/2014,Social Enterprise Admin,Highways & Transport Services,http://opendatacommunities.org/def/concept/finance/sercop/objective/107,CONTINENTAL LANDSCAPES LTD,2108452,18-08-2014,0000042853,59.45,0,Grounds maintenance 14-15,391310,Construction Open Spaces Construction
South Lakeland District Council,http://opendatacommunities.org/id/district-council/south-lakeland,31/08/2014,Social Enterprise Admin,Highways & Transport Services,http://opendatacommunities.org/def/concept/finance/sercop/objective/107,CONTINENTAL LANDSCAPES LTD,2108452,18-08-2014,0000042853,118.9,0,Grounds maintenance 14-15,391310,Construction Open Spaces Construction
South Lakeland District Council,http://opendatacommunities.org/id/district-council/south-lakeland,31/08/2014,Social Enterprise Admin,Highways & Transport Services,http://opendatacommunities.org/def/concept/finance/sercop/objective/107,CONTINENTAL LANDSCAPES LTD,2108452,18-08-2014,0000042853,47.56,0,Grounds maintenance 14-15,391310,Construction Open Spaces Construction
South Lakeland District Council,http://opendatacommunities.org/id/district-council/south-lakeland,31/08/2014,Social Enterprise Admin,Highways & Transport Services,http://opendatacommunities.org/def/concept/finance/sercop/objective/107,CONTINENTAL LANDSCAPES LTD,2108452,18-08-2014,0000042853,5.94,0,Grounds maintenance 14-15,391310,Construction Open Spaces Construction
South Lakeland District Council,http://opendatacommunities.org/id/district-council/south-lakeland,31/08/2014,Social Enterprise Admin,Highways & Transport Services,http://opendatacommunities.org/def/concept/finance/sercop/objective/107,CONTINENTAL LANDSCAPES LTD,2108452,18-08-2014,0000042853,5.94,0,Grounds maintenance 14-15,391310,Construction Open Spaces Construction
South Lakeland District Council,http://opendatacommunities.org/id/district-council/south-lakeland,31/08/2014,Social Enterprise Admin,Highways & Transport Services,http://opendatacommunities.org/def/concept/finance/sercop/objective/107,CONTINENTAL LANDSCAPES LTD,2108452,18-08-2014,0000042853,2.97,0,Grounds maintenance 14-15,391310,Construction Open Spaces Construction
South Lakeland District Council,http://opendatacommunities.org/id/district-council/south-lakeland,31/08/2014,Social Enterprise Admin,Highways & Transport Services,http://opendatacommunities.org/def/concept/finance/sercop/objective/107,CONTINENTAL LANDSCAPES LTD,2108452,18-08-2014,0000042853,59.45,0,Grounds maintenance 14-15,391310,Construction Open Spaces Construction
South Lakeland District Council,http://opendatacommunities.org/id/district-council/south-lakeland,31/08/2014,Social Enterprise Admin,Highways & Transport Services,http://opendatacommunities.org/def/concept/finance/sercop/objective/107,CONTINENTAL LANDSCAPES LTD,2108452,18-08-2014,0000042853,53.5,0,Grounds maintenance 14-15,391310,Construction Open Spaces Construction
South Lakeland District Council,http://opendatacommunities.org/id/district-council/south-lakeland,31/08/2014,Social Enterprise Admin,Highways & Transport Services,http://opendatacommunities.org/def/concept/finance/sercop/objective/107,CONTINENTAL LANDSCAPES LTD,2108452,18-08-2014,0000042853,65.39,0,Grounds maintenance 14-15,391310,Construction Open Spaces Construction
South Lakeland District Council,http://opendatacommunities.org/id/district-council/south-lakeland,31/08/2014,Social Enterprise Admin,Highways & Transport Services,http://opendatacommunities.org/def/concept/finance/sercop/objective/107,CONTINENTAL LANDSCAPES LTD,2108452,18-08-2014,0000042853,124.84,0,Grounds maintenance 14-15,391310,Construction Open Spaces Construction
South Lakeland District Council,http://opendatacommunities.org/id/district-council/south-lakeland,31/08/2014,Social Enterprise Admin,Highways & Transport Services,http://opendatacommunities.org/def/concept/finance/sercop/objective/107,CONTINENTAL LANDSCAPES LTD,2108452,18-08-2014,0000042853,118.9,0,Grounds maintenance 14-15,391310,Construction Open Spaces Construction
South Lakeland District Council,http://opendatacommunities.org/id/district-council/south-lakeland,31/08/2014,Social Enterprise Admin,Highways & Transport Services,http://opendatacommunities.org/def/concept/finance/sercop/objective/107,CONTINENTAL LANDSCAPES LTD,2108452,18-08-2014,0000042853,11.89,0,Grounds maintenance 14-15,391310,Construction Open Spaces Construction
South Lakeland District Council,http://opendatacommunities.org/id/district-council/south-lakeland,31/08/2014,Social Enterprise Admin,Highways & Transport Services,http://opendatacommunities.org/def/concept/finance/sercop/objective/107,CONTINENTAL LANDSCAPES LTD,2108452,18-08-2014,0000042853,11.89,0,Grounds maintenance 14-15,391310,Construction Open Spaces Construction
South Lakeland District Council,http://opendatacommunities.org/id/district-council/south-lakeland,31/08/2014,Social Enterprise Admin,Highways & Transport Services,http://opendatacommunities.org/def/concept/finance/sercop/objective/107,CONTINENTAL LANDSCAPES LTD,2108452,18-08-2014,0000042853,35.67,0,Grounds maintenance 14-15,391310,Construction Open Spaces Construction
South Lakeland District Council,http://opendatacommunities.org/id/district-council/south-lakeland,31/08/2014,Social Enterprise Admin,Highways & Transport Services,http://opendatacommunities.org/def/concept/finance/sercop/objective/107,CONTINENTAL LANDSCAPES LTD,2108452,18-08-2014,0000042853,59.45,0,Grounds maintenance 14-15,391310,Construction Open Spaces Construction
South Lakeland District Council,http://opendatacommunities.org/id/district-council/south-lakeland,31/08/2014,Social Enterprise Admin,Highways & Transport Services,http://opendatacommunities.org/def/concept/finance/sercop/objective/107,CONTINENTAL LANDSCAPES LTD,2108452,18-08-2014,0000042853,105.76,0,Grounds maintenance 14-15,391310,Construction Open Spaces Construction
South Lakeland District Council,http://opendatacommunities.org/id/district-council/south-lakeland,31/08/2014,Social Enterprise Admin,Highways & Transport Services,http://opendatacommunities.org/def/concept/finance/sercop/objective/107,CONTINENTAL LANDSCAPES LTD,2108452,18-08-2014,0000042853,118.9,0,Grounds maintenance 14-15,391310,Construction Open Spaces Construction
South Lakeland District Council,http://opendatacommunities.org/id/district-council/south-lakeland,31/08/2014,Social Enterprise Admin,Highways & Transport Services,http://opendatacommunities.org/def/concept/finance/sercop/objective/107,CONTINENTAL LANDSCAPES LTD,2108452,18-08-2014,0000042853,219.96,0,Grounds maintenance 14-15,391310,Construction Open Spaces Construction
South Lakeland District Council,http://opendatacommunities.org/id/district-council/south-lakeland,31/08/2014,Social Enterprise Admin,Highways & Transport Services,http://opendatacommunities.org/def/concept/finance/sercop/objective/107,CONTINENTAL LANDSCAPES LTD,2108452,18-08-2014,0000042853,118.9,0,Grounds maintenance 14-15,391310,Construction Open Spaces Construction
South Lakeland District Council,http://opendatacommunities.org/id/district-council/south-lakeland,31/08/2014,Social Enterprise Admin,Highways & Transport Services,http://opendatacommunities.org/def/concept/finance/sercop/objective/107,CONTINENTAL LANDSCAPES LTD,2108452,18-08-2014,0000042853,178.35,0,Grounds maintenance 14-15,391310,Construction Open Spaces Construction
South Lakeland District Council,http://opendatacommunities.org/id/district-council/south-lakeland,31/08/2014,Social Enterprise Admin,Cultural Environmental Regulatory & Planning Services,http://opendatacommunities.org/def/concept/finance/sercop/objective/104,CONTINENTAL LANDSCAPES LTD,2108452,18-08-2014,0000042853,9511.8,0,Grounds maintenance 14-15,391310,Construction Open Spaces Construction
South Lakeland District Council,http://opendatacommunities.org/id/district-council/south-lakeland,31/08/2014,Social Enterprise Admin,Cultural Environmental Regulatory & Planning Services,http://opendatacommunities.org/def/concept/finance/sercop/objective/104,CONTINENTAL LANDSCAPES LTD,2108452,18-08-2014,0000042853,1376.57,0,Grounds maintenance 14-15,391310,Construction Open Spaces Construction
South Lakeland District Council,http://opendatacommunities.org/id/district-council/south-lakeland,31/08/2014,Social Enterprise Admin,Cultural Environmental Regulatory & Planning Services,http://opendatacommunities.org/def/concept/finance/sercop/objective/104,CONTINENTAL LANDSCAPES LTD,2108452,18-08-2014,0000042853,23.78,0,Grounds maintenance 14-15,391310,Construction Open Spaces Construction
South Lakeland District Council,http://opendatacommunities.org/id/district-council/south-lakeland,31/08/2014,Social Enterprise Admin,Cultural Environmental Regulatory & Planning Services,http://opendatacommunities.org/def/concept/finance/sercop/objective/104,CONTINENTAL LANDSCAPES LTD,2108452,18-08-2014,0000042853,45478.33,0,Grounds maintenance 14-15,391310,Construction Open Spaces Construction
South Lakeland District Council,http://opendatacommunities.org/id/district-council/south-lakeland,31/08/2014,Social Enterprise Admin,Cultural Environmental Regulatory & Planning Services,http://opendatacommunities.org/def/concept/finance/sercop/objective/104,CONTINENTAL LANDSCAPES LTD,2108452,18-08-2014,0000042853,2259.05,0,Grounds maintenance 14-15,391310,Construction Open Spaces Construction
South Lakeland District Council,http://opendatacommunities.org/id/district-council/south-lakeland,31/08/2014,Social Enterprise Admin,External Trading Accounts,,CONTINENTAL LANDSCAPES LTD,2108452,18-08-2014,0000042853,104.04,0,Grounds maintenance 14-15,391310,Construction Open Spaces Construction
South Lakeland District Council,http://opendatacommunities.org/id/district-council/south-lakeland,31/08/2014,Business Support Community Services,Transport Planning Policy,http://opendatacommunities.org/def/concept/finance/sercop/objective/107,BUNZL CLEANING & HYGIENE SUPPLIES,2902454,13-08-2014,0000042854,231.69,0,Mop head,131011,Cleaning & Janitorial Cleaning Materials
South Lakeland District Council,http://opendatacommunities.org/id/district-council/south-lakeland,31/08/2014,Development Implementation,Cultural Environmental Regulatory & Planning Services,http://opendatacommunities.org/def/concept/finance/sercop/objective/104,STRAMONGATE PRESS LTD (PRINTING A/C),,20-08-2014,0000042855,200,0,Colour Postcard - Explore South Lakeland,191600,Facilities Printing
South Lakeland District Council,http://opendatacommunities.org/id/district-council/south-lakeland,31/08/2014,Lake Wardens,Highways & Transport Services,http://opendatacommunities.org/def/concept/finance/sercop/objective/107,RS COMPONENTS LTD,01002091,18-08-2014,0000042856,20.29,0,1 x Eventus 42 Piece Tap & Die Set.,101100,Building Electrical
South Lakeland District Council,http://opendatacommunities.org/id/district-council/south-lakeland,31/08/2014,Lake Wardens,Cultural Environmental Regulatory & Planning Services,http://opendatacommunities.org/def/concept/finance/sercop/objective/104,RS COMPONENTS LTD,01002091,18-08-2014,0000042856,78.07,0,1 x Eventus 42 Piece Tap & Die Set.,101100,Building Electrical
South Lakeland District Council,http://opendatacommunities.org/id/district-council/south-lakeland,31/08/2014,Legal Services,Central Services,http://opendatacommunities.org/def/concept/finance/sercop/objective/102,VENN GROUP RECRUITMENT SOLUTIONS,,06-08-2014,0000042858,988.98,0,Wages from w/k ending,261400,HR Temporary & Agency Staff
South Lakeland District Council,http://opendatacommunities.org/id/district-council/south-lakeland,31/08/2014,Business Support Community Services,SLDC as Agent,,DISCLOSURE AND BARRING SERVICE,,11-08-2014,0000042861,352,0,no narrative,202100,Financial Services Subscriptions
South Lakeland District Council,http://opendatacommunities.org/id/district-council/south-lakeland,31/08/2014,Revenues and Benefits,Central Services,http://opendatacommunities.org/def/concept/finance/sercop/objective/102,BADENOCH & CLARK,1356186,06-08-2014,0000042862,506.73,0,Revs and Bens,261300,HR Recruitment & Assessment
South Lakeland District Council,http://opendatacommunities.org/id/district-council/south-lakeland,31/08/2014,Business Support Community Services,Cultural Environmental Regulatory & Planning Services,http://opendatacommunities.org/def/concept/finance/sercop/objective/104,MILNTHORPE KENNELS & CATTERY,08932302,20-08-2014,0000042863,2382.33,0,Stray dog kennelling fees April 20014 -,181500,Environment Animal Services
South Lakeland District Council,http://opendatacommunities.org/id/district-council/south-lakeland,31/08/2014,Business Support Community Services,Internal Trading Accounts,,EK MOTOR FACTORS LTD,00838524,06-08-2014,0000042864,37.23,0,Oil,381400,Vehicle Mgt Maintenance
South Lakeland District Council,http://opendatacommunities.org/id/district-council/south-lakeland,31/08/2014,Business Support Community Services,Internal Trading Accounts,,EK MOTOR FACTORS LTD,00838524,06-08-2014,0000042865,-4.68,,Oil,381400,Vehicle Mgt Maintenance
South Lakeland District Council,http://opendatacommunities.org/id/district-council/south-lakeland,31/08/2014,Business Support Community Services,Internal Trading Accounts,,DENNIS EAGLE LTD,03794455,11-08-2014,0000042866,1644.5,0,Switches,381300,Vehicle Mgt Industrial
South Lakeland District Council,http://opendatacommunities.org/id/district-council/south-lakeland,31/08/2014,Business Support Community Services,Internal Trading Accounts,,HYDRAIR TRUCK & TRAILER PARTS LTD,,18-08-2014,0000042867,932,0,Kevlar kit,381500,Vehicle Mgt Parts
South Lakeland District Council,http://opendatacommunities.org/id/district-council/south-lakeland,31/08/2014,Business Support Community Services,Internal Trading Accounts,,HAKO MACHINES LIMITED,01414225,27-08-2014,0000042868,53.92,0,Windscreen,131000,Cleaning & Janitorial Cleaning Materials
South Lakeland District Council,http://opendatacommunities.org/id/district-council/south-lakeland,31/08/2014,Business Support Community Services,Internal Trading Accounts,,SNAP-ON TOOLS LTD,,21-08-2014,0000042869,99.99,0,TSS7 Kit,101600,Building Hand Tools
South Lakeland District Council,http://opendatacommunities.org/id/district-council/south-lakeland,31/08/2014,Business Support Community Services,Internal Trading Accounts,,SOLWAY DAF,1393710,20-08-2014,0000042870,360,0,U bolt,381000,Vehicle Mgt Commercial
South Lakeland District Council,http://opendatacommunities.org/id/district-council/south-lakeland,31/08/2014,Business Support Community Services,Internal Trading Accounts,,EK MOTOR FACTORS LTD,00838524,06-08-2014,0000042871,50.9,0,Oil,381400,Vehicle Mgt Maintenance
South Lakeland District Council,http://opendatacommunities.org/id/district-council/south-lakeland,31/08/2014,Business Support Community Services,Internal Trading Accounts,,EK MOTOR FACTORS LTD,00838524,06-08-2014,0000042872,8.24,0,Oil,381400,Vehicle Mgt Maintenance
South Lakeland District Council,http://opendatacommunities.org/id/district-council/south-lakeland,31/08/2014,Business Support Community Services,Internal Trading Accounts,,EK MOTOR FACTORS LTD,00838524,06-08-2014,0000042873,5.95,0,Oil,381400,Vehicle Mgt Maintenance
South Lakeland District Council,http://opendatacommunities.org/id/district-council/south-lakeland,31/08/2014,Business Support Community Services,Internal Trading Accounts,,EK MOTOR FACTORS LTD,00838524,06-08-2014,0000042874,110,0,Oil,381400,Vehicle Mgt Maintenance
South Lakeland District Council,http://opendatacommunities.org/id/district-council/south-lakeland,31/08/2014,Business Support Community Services,Internal Trading Accounts,,EK MOTOR FACTORS LTD,00838524,11-08-2014,0000042875,118.66,0,Oil,381400,Vehicle Mgt Maintenance
South Lakeland District Council,http://opendatacommunities.org/id/district-council/south-lakeland,31/08/2014,Business Support Community Services,Internal Trading Accounts,,K S INTERNATIONAL LTD,02703321,06-08-2014,0000042876,195,0,Caliper,381500,Vehicle Mgt Parts
South Lakeland District Council,http://opendatacommunities.org/id/district-council/south-lakeland,31/08/2014,Business Support Community Services,Internal Trading Accounts,,EK MOTOR FACTORS LTD,00838524,11-08-2014,0000042877,22.69,0,Oil,381400,Vehicle Mgt Maintenance
South Lakeland District Council,http://opendatacommunities.org/id/district-council/south-lakeland,31/08/2014,Business Support Community Services,Internal Trading Accounts,,K S INTERNATIONAL LTD,02703321,11-08-2014,0000042878,160,0,Caliper,381500,Vehicle Mgt Parts
South Lakeland District Council,http://opendatacommunities.org/id/district-council/south-lakeland,31/08/2014,Business Support Community Services,Internal Trading Accounts,,EK MOTOR FACTORS LTD,00838524,11-08-2014,0000042879,11.7,0,Oil,381400,Vehicle Mgt Maintenance
South Lakeland District Council,http://opendatacommunities.org/id/district-council/south-lakeland,31/08/2014,Business Support Community Services,Internal Trading Accounts,,K S INTERNATIONAL LTD,02703321,11-08-2014,0000042880,200,0,Caliper,381500,Vehicle Mgt Parts
South Lakeland District Council,http://opendatacommunities.org/id/district-council/south-lakeland,31/08/2014,Business Support Community Services,Internal Trading Accounts,,AUTOMOTIVE GLAZING SOLUTIONS,05922870,18-08-2014,0000042881,45,0,Repair windscreen,381400,Vehicle Mgt Maintenance
South Lakeland District Council,http://opendatacommunities.org/id/district-council/south-lakeland,31/08/2014,Business Support Community Services,Internal Trading Accounts,,HAKO MACHINES LIMITED,01414225,27-08-2014,0000042882,1294.63,0,Windscreen,131000,Cleaning & Janitorial Cleaning Materials
South Lakeland District Council,http://opendatacommunities.org/id/district-council/south-lakeland,31/08/2014,Business Support Community Services,Internal Trading Accounts,,AINSWORTH'S GARAGE,,20-08-2014,0000042883,81,0,Repair puncture,381400,Vehicle Mgt Maintenance
South Lakeland District Council,http://opendatacommunities.org/id/district-council/south-lakeland,31/08/2014,Business Support Community Services,Cultural Environmental Regulatory & Planning Services,http://opendatacommunities.org/def/concept/finance/sercop/objective/104,Public Health England,,13-08-2014,0000042884,75.18,0,Microbiological testing,221100,Health & Safety� Maintenance
South Lakeland District Council,http://opendatacommunities.org/id/district-council/south-lakeland,31/08/2014,ICT Group,SLDC as Agent,,CABLE & WIRELESS UK (VODAFONE),,06-08-2014,0000042885,543.66,0,Call Charges 20/6/15 - 25/7/15,271700,ICT Telecommunications Fixed
South Lakeland District Council,http://opendatacommunities.org/id/district-council/south-lakeland,31/08/2014,ICT Group,Central Services,http://opendatacommunities.org/def/concept/finance/sercop/objective/102,PROBRAND LTD,02653446,20-08-2014,0000042886,557.64,0,PAM029/83544-12      Plantronics - Savi,271600,ICT Software Customised & Bespoke
South Lakeland District Council,http://opendatacommunities.org/id/district-council/south-lakeland,31/08/2014,Lake Wardens,Cultural Environmental Regulatory & Planning Services,http://opendatacommunities.org/def/concept/finance/sercop/objective/104,BISHOP SPORTS & LEISURE LTD,00842463,20-08-2014,0000042887,27.1,0,2 x Bags of Long Golf Tees.,291400,Arts & Leisure Services Sport & Fitness
South Lakeland District Council,http://opendatacommunities.org/id/district-council/south-lakeland,31/08/2014,Business Support Community Services,Internal Trading Accounts,,ALLSTAR BUSINESS SOLUTIONS LTD (NCR),2631112,01-08-2014,0000042888,5015.8,0,Fuel to 31/07,381600,Vehicle Mgt Leasing
South Lakeland District Council,http://opendatacommunities.org/id/district-council/south-lakeland,31/08/2014,Business Support Community Services,Internal Trading Accounts,,ALLSTAR BUSINESS SOLUTIONS LTD (NCR),2631112,01-08-2014,0000042888,143.21,0,Fuel to 31/07,381600,Vehicle Mgt Leasing
South Lakeland District Council,http://opendatacommunities.org/id/district-council/south-lakeland,31/08/2014,Business Support Community Services,Internal Trading Accounts,,ALLSTAR BUSINESS SOLUTIONS LTD (NCR),2631112,01-08-2014,0000042888,17240.92,0,Fuel to 31/07,381600,Vehicle Mgt Leasing
South Lakeland District Council,http://opendatacommunities.org/id/district-council/south-lakeland,31/08/2014,Development Strategy,Central Services,http://opendatacommunities.org/def/concept/finance/sercop/objective/102,PLANNING OFFICERS SOCIETY,06709078,06-08-2014,0000042889,275,0,Membership subscription for 2014/15 for,202100,Financial Services Subscriptions
South Lakeland District Council,http://opendatacommunities.org/id/district-council/south-lakeland,31/08/2014,Development Strategy,Cultural Environmental Regulatory & Planning Services,http://opendatacommunities.org/def/concept/finance/sercop/objective/104,Exacom Systems Ltd,07356515,11-08-2014,0000042890,925,0,"CIL workshop: training, travel and",152100,Consultancy Strategic Planning
South Lakeland District Council,http://opendatacommunities.org/id/district-council/south-lakeland,31/08/2014,Development Strategy,Cultural Environmental Regulatory & Planning Services,http://opendatacommunities.org/def/concept/finance/sercop/objective/104,Exacom Systems Ltd,07356515,11-08-2014,0000042890,925,0,"CIL workshop: training, travel and",152100,Consultancy Strategic Planning
South Lakeland District Council,http://opendatacommunities.org/id/district-council/south-lakeland,31/08/2014,Democratic Services,Central Services,http://opendatacommunities.org/def/concept/finance/sercop/objective/102,APSE,06735100,18-08-2014,0000042891,249,0,Seminar attendance Leeds 11 July 2014 -,202100,Financial Services Subscriptions
South Lakeland District Council,http://opendatacommunities.org/id/district-council/south-lakeland,31/08/2014,Democratic Services,Central Services,http://opendatacommunities.org/def/concept/finance/sercop/objective/102,GATES TRAVEL SERVICE,,13-08-2014,0000042892,97.5,0,Train travel Oxenholme to London rtn,261600,HR Travel & Subsistence
South Lakeland District Council,http://opendatacommunities.org/id/district-council/south-lakeland,31/08/2014,Environment and Housing,Housing,http://opendatacommunities.org/def/concept/finance/sercop/objective/108,VINCENT HOLLERAN PLUMBING & HEATING LTD,,06-08-2014,0000042894,4490,0,"Sandylands Road, Kendal, LLA9 6EY",101700,Building Heating & Air Conditioning
South Lakeland District Council,http://opendatacommunities.org/id/district-council/south-lakeland,31/08/2014,Environment and Housing,Housing,http://opendatacommunities.org/def/concept/finance/sercop/objective/108,ULTRACARE PROPERTY MANAGEMENT LTD,05020554,06-08-2014,0000042895,3412,0,"Goad Street, Swarthmoor, Ulverston,",191700,Facilities Property Management
South Lakeland District Council,http://opendatacommunities.org/id/district-council/south-lakeland,31/08/2014,Environment and Housing,Housing,http://opendatacommunities.org/def/concept/finance/sercop/objective/108,C W COX & SONS (KENDAL) LTD,03498844,06-08-2014,0000042896,1154.56,0,"Romney Road, Kendal, LA9 5RA",101000,Building Bathrooms
South Lakeland District Council,http://opendatacommunities.org/id/district-council/south-lakeland,31/08/2014,Environment and Housing,Housing,http://opendatacommunities.org/def/concept/finance/sercop/objective/108,ULTRACARE PROPERTY MANAGEMENT LTD,05020554,06-08-2014,0000042897,3211,0,"Knott View, Kendal, LA9 4NU",191700,Facilities Property Management
South Lakeland District Council,http://opendatacommunities.org/id/district-council/south-lakeland,31/08/2014,Environment and Housing,Housing,http://opendatacommunities.org/def/concept/finance/sercop/objective/108,ULTRACARE PROPERTY MANAGEMENT LTD,05020554,06-08-2014,0000042898,3364,0,"The Promenade, Arnside, LA5",191700,Facilities Property Management
South Lakeland District Council,http://opendatacommunities.org/id/district-council/south-lakeland,31/08/2014,Environment and Housing,Housing,http://opendatacommunities.org/def/concept/finance/sercop/objective/108,ULTRACARE PROPERTY MANAGEMENT LTD,05020554,06-08-2014,0000042899,900.27,0,"Linnet Grove, Kendal, LA9 7RP",191700,Facilities Property Management
South Lakeland District Council,http://opendatacommunities.org/id/district-council/south-lakeland,31/08/2014,Environment and Housing,Housing,http://opendatacommunities.org/def/concept/finance/sercop/objective/108,ULTRACARE PROPERTY MANAGEMENT LTD,05020554,06-08-2014,0000042900,3552,0,"White Stiles, Kendal, LA9 6DJ",191700,Facilities Property Management
South Lakeland District Council,http://opendatacommunities.org/id/district-council/south-lakeland,31/08/2014,Environment and Housing,Housing,http://opendatacommunities.org/def/concept/finance/sercop/objective/108,ULTRACARE PROPERTY MANAGEMENT LTD,05020554,06-08-2014,0000042901,3122,0,"New Street, Burneside, Kendal, LA9 6QB",191700,Facilities Property Management
South Lakeland District Council,http://opendatacommunities.org/id/district-council/south-lakeland,31/08/2014,Human Resources,Non-Service Payments,,BUSY BEES BENEFITS LTD,06758298,06-08-2014,0000042902,453,0,CHILD CARE VOUCHERS - APPROX ?500.00 PER,202100,Financial Services Subscriptions
South Lakeland District Council,http://opendatacommunities.org/id/district-council/south-lakeland,31/08/2014,Human Resources,Central Services,http://opendatacommunities.org/def/concept/finance/sercop/objective/102,BUSY BEES BENEFITS LTD,06758298,06-08-2014,0000042903,15.86,0,CHILD CARE VOUCHERS - APPROX ?500.00 PER,202100,Financial Services Subscriptions
South Lakeland District Council,http://opendatacommunities.org/id/district-council/south-lakeland,31/08/2014,Printing Section,Central Services,http://opendatacommunities.org/def/concept/finance/sercop/objective/102,TOSHIBA TEC UK IMAGING SYSTEMS LTD,04124726,13-08-2014,0000042904,8614.24,0,Billing for printers from 4th April to,271600,ICT Software Customised & Bespoke
South Lakeland District Council,http://opendatacommunities.org/id/district-council/south-lakeland,31/08/2014,Human Resources,Central Services,http://opendatacommunities.org/def/concept/finance/sercop/objective/102,FORBES SOLICITORS,,06-08-2014,0000042905,270,0,general legal advise,281300,Legal Services Legal Opinion
South Lakeland District Council,http://opendatacommunities.org/id/district-council/south-lakeland,31/08/2014,Human Resources,Central Services,http://opendatacommunities.org/def/concept/finance/sercop/objective/102,FORBES SOLICITORS,,06-08-2014,0000042906,1728,0,general legal advise,281300,Legal Services Legal Opinion
South Lakeland District Council,http://opendatacommunities.org/id/district-council/south-lakeland,31/08/2014,Business Support Community Services,Internal Trading Accounts,,EK MOTOR FACTORS LTD,00838524,13-08-2014,0000042907,10.74,0,Oil,381400,Vehicle Mgt Maintenance
South Lakeland District Council,http://opendatacommunities.org/id/district-council/south-lakeland,31/08/2014,Business Support Community Services,Internal Trading Accounts,,EK MOTOR FACTORS LTD,00838524,13-08-2014,0000042908,124.91,0,Oil,381400,Vehicle Mgt Maintenance
South Lakeland District Council,http://opendatacommunities.org/id/district-council/south-lakeland,31/08/2014,Business Support Community Services,Internal Trading Accounts,,EK MOTOR FACTORS LTD,00838524,06-08-2014,0000042909,-20.46,,Oil,381400,Vehicle Mgt Maintenance
South Lakeland District Council,http://opendatacommunities.org/id/district-council/south-lakeland,31/08/2014,Social Enterprise Admin,Highways & Transport Services,http://opendatacommunities.org/def/concept/finance/sercop/objective/107,METRIC GROUP LIMITED,02560839,20-08-2014,0000042910,693,0,Web hosting and web tariff editor for 66,359999,Street & Traffic Not Elsewhere Classifie
South Lakeland District Council,http://opendatacommunities.org/id/district-council/south-lakeland,31/08/2014,Development Strategy,Cultural Environmental Regulatory & Planning Services,http://opendatacommunities.org/def/concept/finance/sercop/objective/104,Matchtech,02526418,06-08-2014,0000042911,833.7,0," - 12-week contract, 30hrs",261300,HR Recruitment & Assessment
South Lakeland District Council,http://opendatacommunities.org/id/district-council/south-lakeland,31/08/2014,Development Strategy,Cultural Environmental Regulatory & Planning Services,http://opendatacommunities.org/def/concept/finance/sercop/objective/104,Matchtech,02526418,06-08-2014,0000042912,833.7,0," - 12-week contract, 30hrs",261300,HR Recruitment & Assessment
South Lakeland District Council,http://opendatacommunities.org/id/district-council/south-lakeland,31/08/2014,Social Enterprise Admin,Cultural Environmental Regulatory & Planning Services,http://opendatacommunities.org/def/concept/finance/sercop/objective/104,Matchtech,02526418,13-08-2014,0000042913,866.1,0,TO SUPPLY DEVELOPMENT CONTROL TEAM,261300,HR Recruitment & Assessment
South Lakeland District Council,http://opendatacommunities.org/id/district-council/south-lakeland,31/08/2014,Development Strategy,Cultural Environmental Regulatory & Planning Services,http://opendatacommunities.org/def/concept/finance/sercop/objective/104,Matchtech,02526418,06-08-2014,0000042914,18.8,0," - 12-week contract, 30hrs",261300,HR Recruitment & Assessment
South Lakeland District Council,http://opendatacommunities.org/id/district-council/south-lakeland,31/08/2014,Development Strategy,Cultural Environmental Regulatory & Planning Services,http://opendatacommunities.org/def/concept/finance/sercop/objective/104,Matchtech,02526418,06-08-2014,0000042915,833.7,0," - 12-week contract, 30hrs",261300,HR Recruitment & Assessment
South Lakeland District Council,http://opendatacommunities.org/id/district-council/south-lakeland,31/08/2014,Business Support Community Services,Housing Services,http://opendatacommunities.org/def/concept/finance/sercop/objective/108,Landlord,,06-08-2014,0000042916,625,0,Rent in advance ,202000,Financial Services Rents
South Lakeland District Council,http://opendatacommunities.org/id/district-council/south-lakeland,31/08/2014,Business Support Community Services,Housing Services,http://opendatacommunities.org/def/concept/finance/sercop/objective/108,Landlord,,06-08-2014,0000042917,400,0,Monthly rent ,250010,Housing Letting Agents
South Lakeland District Council,http://opendatacommunities.org/id/district-council/south-lakeland,31/08/2014,Business Support Community Services,Housing Services,http://opendatacommunities.org/def/concept/finance/sercop/objective/108,Landlord,,06-08-2014,0000042918,410,0,Monthly rent ,250000,Housing
South Lakeland District Council,http://opendatacommunities.org/id/district-council/south-lakeland,31/08/2014,Business Support Community Services,Housing Services,http://opendatacommunities.org/def/concept/finance/sercop/objective/108,Landlord,,06-08-2014,0000042919,400,0,Monthly rent ,250000,Housing
South Lakeland District Council,http://opendatacommunities.org/id/district-council/south-lakeland,31/08/2014,Business Support Community Services,Housing Services,http://opendatacommunities.org/def/concept/finance/sercop/objective/108,Landlord,,06-08-2014,0000042920,400,0,Monthy rent  ,250000,Housing
South Lakeland District Council,http://opendatacommunities.org/id/district-council/south-lakeland,31/08/2014,Business Support Community Services,Internal Trading Accounts,,HYDRAIR TRUCK & TRAILER PARTS LTD,,11-08-2014,0000042921,80.2,0,Kevlar kit,381500,Vehicle Mgt Parts
South Lakeland District Council,http://opendatacommunities.org/id/district-council/south-lakeland,31/08/2014,Business Support Community Services,Cultural Environmental Regulatory & Planning Services,http://opendatacommunities.org/def/concept/finance/sercop/objective/104,OCS GROUP LTD T/A CANNON HYGIENE LTD,01298292,20-08-2014,0000042922,70.45,0,Clinical waste collections - July,131011,Cleaning & Janitorial Cleaning Materials
South Lakeland District Council,http://opendatacommunities.org/id/district-council/south-lakeland,31/08/2014,Business Support Community Services,Cultural Environmental Regulatory & Planning Services,http://opendatacommunities.org/def/concept/finance/sercop/objective/104,OCS GROUP LTD T/A CANNON HYGIENE LTD,01298292,18-08-2014,0000042923,2143.29,0,Clinical waste collections - July,131011,Cleaning & Janitorial Cleaning Materials
South Lakeland District Council,http://opendatacommunities.org/id/district-council/south-lakeland,31/08/2014,Business Support Community Services,Internal Trading Accounts,,S J Bargh,00532272,13-08-2014,0000042924,90.75,0,Visor,381400,Vehicle Mgt Maintenance
South Lakeland District Council,http://opendatacommunities.org/id/district-council/south-lakeland,31/08/2014,Business Support Community Services,Internal Trading Accounts,,EK MOTOR FACTORS LTD,00838524,20-08-2014,0000042925,55.92,0,Oil,381400,Vehicle Mgt Maintenance
South Lakeland District Council,http://opendatacommunities.org/id/district-council/south-lakeland,31/08/2014,Business Support Community Services,Internal Trading Accounts,,CUMBRIA TRUCK CENTRE LTD,04298488,20-08-2014,0000042926,122.03,0,Overhaul kit,381300,Vehicle Mgt Industrial
South Lakeland District Council,http://opendatacommunities.org/id/district-council/south-lakeland,31/08/2014,Business Support Community Services,Internal Trading Accounts,,K S INTERNATIONAL LTD,02703321,20-08-2014,0000042927,155,0,Caliper,381500,Vehicle Mgt Parts
South Lakeland District Council,http://opendatacommunities.org/id/district-council/south-lakeland,31/08/2014,Business Support Community Services,SLDC as Agent,,JOANNA SMAILES,,06-08-2014,0000042928,5.85,0,NSNO Project Manager Expenses,150000,Consultancy
South Lakeland District Council,http://opendatacommunities.org/id/district-council/south-lakeland,31/08/2014,Business Support Community Services,SLDC as Agent,,JOANNA SMAILES,,06-08-2014,0000042929,1200,0,"Project Management, Cumbria NSNO &",150000,Consultancy
South Lakeland District Council,http://opendatacommunities.org/id/district-council/south-lakeland,31/08/2014,Business Support Community Services,Housing Services,http://opendatacommunities.org/def/concept/finance/sercop/objective/108,KENDAL HOSTEL,,06-08-2014,0000042930,220,0,11 days Accommodation for Andrew Hopley,261000,HR Accommodation
South Lakeland District Council,http://opendatacommunities.org/id/district-council/south-lakeland,31/08/2014,Development Implementation,Cultural Environmental Regulatory & Planning Services,http://opendatacommunities.org/def/concept/finance/sercop/objective/104,PS BUSINESS MATTERS,08147185,20-08-2014,0000042932,2500,0,Kendal Futures - Programme Support,151900,Consultancy Management
South Lakeland District Council,http://opendatacommunities.org/id/district-council/south-lakeland,31/08/2014,ICT Group,Central Services,http://opendatacommunities.org/def/concept/finance/sercop/objective/102,PROBRAND LTD,02653446,20-08-2014,0000042933,541.62,0,EDR620/EB220H        Edge 10 - EB220h,271600,ICT Software Customised & Bespoke
South Lakeland District Council,http://opendatacommunities.org/id/district-council/south-lakeland,31/08/2014,ICT Group,Central Services,http://opendatacommunities.org/def/concept/finance/sercop/objective/102,PROBRAND LTD,02653446,20-08-2014,0000042934,22.12,0,VUW364/CBP1-9E    V7 - Professional,271600,ICT Software Customised & Bespoke
South Lakeland District Council,http://opendatacommunities.org/id/district-council/south-lakeland,31/08/2014,Business Support Community Services,Cultural Environmental Regulatory & Planning Services,http://opendatacommunities.org/def/concept/finance/sercop/objective/104,INSTITUTE OF LICENSING,04884548,11-08-2014,0000042935,66.47,0,IOL Membership Fees,202100,Financial Services Subscriptions
South Lakeland District Council,http://opendatacommunities.org/id/district-council/south-lakeland,31/08/2014,Business Support Community Services,Cultural Environmental Regulatory & Planning Services,http://opendatacommunities.org/def/concept/finance/sercop/objective/104,INSTITUTE OF LICENSING,04884548,11-08-2014,0000042935,183.53,0,IOL Membership Fees,202100,Financial Services Subscriptions
South Lakeland District Council,http://opendatacommunities.org/id/district-council/south-lakeland,31/08/2014,Human Resources,Central Services,http://opendatacommunities.org/def/concept/finance/sercop/objective/102,Colston Media Ltd,08299417,18-08-2014,0000042936,70,0,North West Times 10x4 advert,191000,Facilities Advertising
South Lakeland District Council,http://opendatacommunities.org/id/district-council/south-lakeland,31/08/2014,Legal Services,Central Services,http://opendatacommunities.org/def/concept/finance/sercop/objective/102,GATES TRAVEL SERVICE,,11-08-2014,0000042937,114.5,0,Rail fare and Oyster travel  for N.,261600,HR Travel & Subsistence
South Lakeland District Council,http://opendatacommunities.org/id/district-council/south-lakeland,31/08/2014,Development Implementation,Central Services,http://opendatacommunities.org/def/concept/finance/sercop/objective/102,DOTTED EYES,06543990,20-08-2014,0000042939,372,0,Annual Renewal MapInfo (?300) & Easyplot,261500,HR Training & Conferences
South Lakeland District Council,http://opendatacommunities.org/id/district-council/south-lakeland,31/08/2014,Business Support Community Services,Internal Trading Accounts,,BRIAN ARMISTEAD LTD T/A SINKFALL RECYCLI,04133280,13-08-2014,0000042943,1208,0,Green waste tipping - April (estimated),391110,Construction Buildings Construction
South Lakeland District Council,http://opendatacommunities.org/id/district-council/south-lakeland,31/08/2014,Business Support Community Services,Internal Trading Accounts,,ARCO LIMITED,00133804,13-08-2014,0000042944,500.28,0,Gloves,141100,Clothing Protective
South Lakeland District Council,http://opendatacommunities.org/id/district-council/south-lakeland,31/08/2014,Lake Wardens,Cultural Environmental Regulatory & Planning Services,http://opendatacommunities.org/def/concept/finance/sercop/objective/104,ENVIROFIRST LTD,05999123,18-08-2014,0000042945,70,0,Monthly Rental & Emptying of Re-Cycling,182012,Environment Waste Management Recycling
South Lakeland District Council,http://opendatacommunities.org/id/district-council/south-lakeland,31/08/2014,Social Enterprise Admin,Central Services,http://opendatacommunities.org/def/concept/finance/sercop/objective/102,ENVIROFIRST LTD,05999123,18-08-2014,0000042946,63,0,Lowther Street Wheelie Bin Mixed,182012,Environment Waste Management Recycling
South Lakeland District Council,http://opendatacommunities.org/id/district-council/south-lakeland,31/08/2014,Legal Services,External Trading Accounts,,DENT PARISH COUNCIL,,11-08-2014,0000042948,630,0,Fees for payment of repair works carried,908000,Public Bodies Council support services
South Lakeland District Council,http://opendatacommunities.org/id/district-council/south-lakeland,31/08/2014,Human Resources,Central Services,http://opendatacommunities.org/def/concept/finance/sercop/objective/102,COMPUTERSHARE VOUCHER SERVICES LTD,04968447,11-08-2014,0000042949,32.85,0,CHULD CARE VOUCHERS - APPROX. ?1000.00,202100,Financial Services Subscriptions
South Lakeland District Council,http://opendatacommunities.org/id/district-council/south-lakeland,31/08/2014,Human Resources,Non-Service Payments,,COMPUTERSHARE VOUCHER SERVICES LTD,04968447,11-08-2014,0000042950,876,0,CHULD CARE VOUCHERS - APPROX. ?1000.00,202100,Financial Services Subscriptions
South Lakeland District Council,http://opendatacommunities.org/id/district-council/south-lakeland,31/08/2014,Social Enterprise Admin,Highways & Transport Services,http://opendatacommunities.org/def/concept/finance/sercop/objective/107,CREDIT CALL LTD (NCR),,01-08-2014,0000042951,586.85,0,Credit Call Commission 2014/15,209999,Financial Services Not Elsewhere Classif
South Lakeland District Council,http://opendatacommunities.org/id/district-council/south-lakeland,31/08/2014,ICT Group,Central Services,http://opendatacommunities.org/def/concept/finance/sercop/objective/102,SOCITM LIMITED,04396808,20-08-2014,0000042952,890,0,Insight Subscription renewal 25/8/14 -,152200,Consultancy Technical & Feasibility
South Lakeland District Council,http://opendatacommunities.org/id/district-council/south-lakeland,31/08/2014,Development Strategy,Housing Services,http://opendatacommunities.org/def/concept/finance/sercop/objective/108,MORGAN HUNT UK LIMITED,04349535,20-08-2014,0000042953,1432.64,0,work for South,269999,HR Not Elsewhere Classified
South Lakeland District Council,http://opendatacommunities.org/id/district-council/south-lakeland,31/08/2014,Business Support Community Services,SLDC as Agent,,EDEN DISTRICT COUNCIL,,11-08-2014,0000042957,20000,0,Funding for Eden's  NSNO project,908000,Public Bodies Council support services
South Lakeland District Council,http://opendatacommunities.org/id/district-council/south-lakeland,31/08/2014,Business Support Community Services,Housing Services,http://opendatacommunities.org/def/concept/finance/sercop/objective/108,Landlord,,11-08-2014,0000042958,520,0,Monthly rent ,202000,Financial Services Rents
South Lakeland District Council,http://opendatacommunities.org/id/district-council/south-lakeland,31/08/2014,Business Support Community Services,Housing Services,http://opendatacommunities.org/def/concept/finance/sercop/objective/108,Landlord,,11-08-2014,0000042959,400,0,Monthly rent ,250000,Housing
South Lakeland District Council,http://opendatacommunities.org/id/district-council/south-lakeland,31/08/2014,Social Enterprise Admin,Central Services,http://opendatacommunities.org/def/concept/finance/sercop/objective/102,Masterstaff Limited,02777593,18-08-2014,0000042960,173.13,0,T0 SUPPLY LOCAL LAND,261300,HR Recruitment & Assessment
South Lakeland District Council,http://opendatacommunities.org/id/district-council/south-lakeland,31/08/2014,Environment and Housing,Housing Services,http://opendatacommunities.org/def/concept/finance/sercop/objective/108,James Andrews Recruitment Solutions,06834852,11-08-2014,0000042961,94.06,0,Milage for Agency Staff ,261400,HR Temporary & Agency Staff
South Lakeland District Council,http://opendatacommunities.org/id/district-council/south-lakeland,31/08/2014,Environment and Housing,Housing Services,http://opendatacommunities.org/def/concept/finance/sercop/objective/108,James Andrews Recruitment Solutions,06834852,11-08-2014,0000042962,729,0,Salary for Agency staff ,261400,HR Temporary & Agency Staff
South Lakeland District Council,http://opendatacommunities.org/id/district-council/south-lakeland,31/08/2014,Business Support Community Services,Housing Services,http://opendatacommunities.org/def/concept/finance/sercop/objective/108,James Andrews Recruitment Solutions,06834852,11-08-2014,0000042963,887.5,0,Payment ,261400,HR Temporary & Agency Staff
South Lakeland District Council,http://opendatacommunities.org/id/district-council/south-lakeland,31/08/2014,Environment and Housing,Housing Services,http://opendatacommunities.org/def/concept/finance/sercop/objective/108,James Andrews Recruitment Solutions,06834852,18-08-2014,0000042964,729,0,Salary for Agency staff - ,261400,HR Temporary & Agency Staff
South Lakeland District Council,http://opendatacommunities.org/id/district-council/south-lakeland,31/08/2014,Business Support Community Services,Housing Services,http://opendatacommunities.org/def/concept/finance/sercop/objective/108,James Andrews Recruitment Solutions,06834852,11-08-2014,0000042965,937.5,0,Payment ,261400,HR Temporary & Agency Staff
South Lakeland District Council,http://opendatacommunities.org/id/district-council/south-lakeland,31/08/2014,Revenues and Benefits,Central Services,http://opendatacommunities.org/def/concept/finance/sercop/objective/102,ROYAL MAIL GROUP PLC,,11-08-2014,0000042966,74.77,0,2014-15  Postal Charges a/c 0055114000,301200,Mail Services� Postage
South Lakeland District Council,http://opendatacommunities.org/id/district-council/south-lakeland,31/08/2014,Revenues and Benefits,SLDC as Agent,,ROYAL MAIL GROUP PLC,,11-08-2014,0000042967,1296.09,0,2014-15  Postal Charges a/c 0198123013,301200,Mail Services� Postage
South Lakeland District Council,http://opendatacommunities.org/id/district-council/south-lakeland,31/08/2014,Legal Services,Central Services,http://opendatacommunities.org/def/concept/finance/sercop/objective/102,VENN GROUP RECRUITMENT SOLUTIONS,,11-08-2014,0000042968,973.76,0,Wages from w/k ending,261400,HR Temporary & Agency Staff
South Lakeland District Council,http://opendatacommunities.org/id/district-council/south-lakeland,31/08/2014,Coronation Hall,External Trading Accounts,,Morson International,,27-08-2014,0000042969,159.04,0,Ulverston Market Hall cleaner from April,261300,HR Recruitment & Assessment
South Lakeland District Council,http://opendatacommunities.org/id/district-council/south-lakeland,31/08/2014,Development Strategy,Cultural Environmental Regulatory & Planning Services,http://opendatacommunities.org/def/concept/finance/sercop/objective/104,Matchtech,02526418,20-08-2014,0000042970,833.7,0,"12-week contract, 30hrs",261300,HR Recruitment & Assessment
South Lakeland District Council,http://opendatacommunities.org/id/district-council/south-lakeland,31/08/2014,Social Enterprise Admin,Cultural Environmental Regulatory & Planning Services,http://opendatacommunities.org/def/concept/finance/sercop/objective/104,Matchtech,02526418,11-08-2014,0000042971,1068.19,0,TO SUPPLY DEVELOPMENT CONTROL TEAM,261300,HR Recruitment & Assessment
South Lakeland District Council,http://opendatacommunities.org/id/district-council/south-lakeland,31/08/2014,Revenues and Benefits,Central Services,http://opendatacommunities.org/def/concept/finance/sercop/objective/102,TAMESIDE METROPOLITAN BOROUGH,,11-08-2014,0000042972,225.72,0,2014-15  NAFN credit and other,202100,Financial Services Subscriptions
South Lakeland District Council,http://opendatacommunities.org/id/district-council/south-lakeland,31/08/2014,Social Enterprise Admin,Central Services,http://opendatacommunities.org/def/concept/finance/sercop/objective/102,Masterstaff Limited,02777593,18-08-2014,0000042974,432.83,0,T0 SUPPLY LOCAL LAND,261300,HR Recruitment & Assessment
South Lakeland District Council,http://opendatacommunities.org/id/district-council/south-lakeland,31/08/2014,Social Enterprise Admin,Cultural Environmental Regulatory & Planning Services,http://opendatacommunities.org/def/concept/finance/sercop/objective/104,Eamonn Byrne Landscape Architecture,,18-08-2014,0000042975,1187,0,1. Draft masterplan (25% of overall fee),391300,Construction Open Spaces
South Lakeland District Council,http://opendatacommunities.org/id/district-council/south-lakeland,31/08/2014,Policy & Partnerships,Cultural Environmental Regulatory & Planning Services,http://opendatacommunities.org/def/concept/finance/sercop/objective/104,CUMBRIA CVS,08703970,20-08-2014,0000042976,5000,0,Year 2 grant - Cumbria CVS,202100,Financial Services Subscriptions
South Lakeland District Council,http://opendatacommunities.org/id/district-council/south-lakeland,31/08/2014,Policy & Partnerships,Cultural Environmental Regulatory & Planning Services,http://opendatacommunities.org/def/concept/finance/sercop/objective/104,ULVERSTON TOWN COUNCIL,,11-08-2014,0000042977,500,0,WWI memorial,908000,Public Bodies Council support services
South Lakeland District Council,http://opendatacommunities.org/id/district-council/south-lakeland,31/08/2014,Revenues and Benefits,Central Services,http://opendatacommunities.org/def/concept/finance/sercop/objective/102,BADENOCH & CLARK,1356186,11-08-2014,0000042978,540.07,0,Revs and Bens,261300,HR Recruitment & Assessment
South Lakeland District Council,http://opendatacommunities.org/id/district-council/south-lakeland,31/08/2014,Kendal Market Hall,External Trading Accounts,,HYGIENE CLEANING SUPPLIES LTD,04753934,11-08-2014,0000042979,9.32,0,1 x stainless steel toilet paper,131011,Cleaning & Janitorial Cleaning Materials
South Lakeland District Council,http://opendatacommunities.org/id/district-council/south-lakeland,31/08/2014,Kendal Town Hall,Cultural Environmental Regulatory & Planning Services,http://opendatacommunities.org/def/concept/finance/sercop/objective/104,HYGIENE CLEANING SUPPLIES LTD,04753934,11-08-2014,0000042980,11.96,0,T668R microtex cloths (red),131011,Cleaning & Janitorial Cleaning Materials
South Lakeland District Council,http://opendatacommunities.org/id/district-council/south-lakeland,31/08/2014,Policy & Partnerships,Cultural Environmental Regulatory & Planning Services,http://opendatacommunities.org/def/concept/finance/sercop/objective/104,GRANTS- MISCELLANEOUS,,13-08-2014,0000042981,100,0,Free meals to underprivileged children,201700,Financial Services Grants
South Lakeland District Council,http://opendatacommunities.org/id/district-council/south-lakeland,31/08/2014,Human Resources,Central Services,http://opendatacommunities.org/def/concept/finance/sercop/objective/102,PHASE 3 CONSULTING,05034692,11-08-2014,0000042983,550,0,Elaine Richardson invoice 5393,151000,Consultancy Business
South Lakeland District Council,http://opendatacommunities.org/id/district-council/south-lakeland,31/08/2014,Social Enterprise Admin,Cultural Environmental Regulatory & Planning Services,http://opendatacommunities.org/def/concept/finance/sercop/objective/104,LAKELAND SUPPLIES,,18-08-2014,0000042985,6.38,0,100 12X4 screws as invoice 168085,101610,Building Hand Tools
South Lakeland District Council,http://opendatacommunities.org/id/district-council/south-lakeland,31/08/2014,Business Support Community Services,Internal Trading Accounts,,K S INTERNATIONAL LTD,02703321,20-08-2014,0000042989,115,0,Caliper,381500,Vehicle Mgt Parts
South Lakeland District Council,http://opendatacommunities.org/id/district-council/south-lakeland,31/08/2014,Business Support Community Services,Internal Trading Accounts,,AINSWORTH'S GARAGE,,20-08-2014,0000042990,45,0,Starter SL041,381400,Vehicle Mgt Maintenance
South Lakeland District Council,http://opendatacommunities.org/id/district-council/south-lakeland,31/08/2014,Business Support Community Services,Environment Regulatory,,STRAIGHT MANUFACTURING PLC,,20-08-2014,0000042991,12109.5,0,240 litre Wheeled Bin (green) @ ?17.25,182011,Environment Waste Management Consumables
South Lakeland District Council,http://opendatacommunities.org/id/district-council/south-lakeland,31/08/2014,Business Support Community Services,Internal Trading Accounts,,RIBBLESDALE AUTO ELECTRICS 1992 LTD,02732686,20-08-2014,0000042992,42,0,Baecon motors,381500,Vehicle Mgt Parts
South Lakeland District Council,http://opendatacommunities.org/id/district-council/south-lakeland,31/08/2014,Business Support Community Services,Internal Trading Accounts,,FLEET PARTS LTD,01252714,20-08-2014,0000042993,280,0,Texa Diagnostics training,381500,Vehicle Mgt Parts
South Lakeland District Council,http://opendatacommunities.org/id/district-council/south-lakeland,31/08/2014,Business Support Community Services,Internal Trading Accounts,,M G D LTD,,20-08-2014,0000042994,35,0,MOTs 01/04/14 - 31/03/15,381400,Vehicle Mgt Maintenance
South Lakeland District Council,http://opendatacommunities.org/id/district-council/south-lakeland,31/08/2014,Human Resources,Central Services,http://opendatacommunities.org/def/concept/finance/sercop/objective/102,OH Acquisitions Ltd,07365943,20-08-2014,0000042995,75,0,Jaroslaw Lacina Medical screening,191800,Facilities Public Relations & Image
South Lakeland District Council,http://opendatacommunities.org/id/district-council/south-lakeland,31/08/2014,Business Support Community Services,Cultural Environmental Regulatory & Planning Services,http://opendatacommunities.org/def/concept/finance/sercop/objective/104,INTELLIGENT DATA SYSTEMS (UK) LTD,05148878,18-08-2014,0000042996,171,0,IDS Checks,271510,ICT Application Service Provision
South Lakeland District Council,http://opendatacommunities.org/id/district-council/south-lakeland,31/08/2014,Business Support Community Services,Internal Trading Accounts,,AINSWORTH'S GARAGE,,20-08-2014,0000042997,27,0,Brake test,381400,Vehicle Mgt Maintenance
South Lakeland District Council,http://opendatacommunities.org/id/district-council/south-lakeland,31/08/2014,Research and Intelligence,Central Services,http://opendatacommunities.org/def/concept/finance/sercop/objective/102,BOROUGH OF BARROW IN FURNESS,,20-08-2014,0000042998,492,0,Update of Web Mapping,908999,Public Bodies Not Elsewhere Classified
South Lakeland District Council,http://opendatacommunities.org/id/district-council/south-lakeland,31/08/2014,Coronation Hall,External Trading Accounts,,YPO,,20-08-2014,0000042999,56.75,0,Glade air freshener 500ml code 210005,152000,Consultancy Procurement
South Lakeland District Council,http://opendatacommunities.org/id/district-council/south-lakeland,31/08/2014,Coronation Hall,Cultural Environmental Regulatory & Planning Services,http://opendatacommunities.org/def/concept/finance/sercop/objective/104,YPO,,20-08-2014,0000042999,144.01,0,Glade air freshener 500ml code 210005,152000,Consultancy Procurement
South Lakeland District Council,http://opendatacommunities.org/id/district-council/south-lakeland,31/08/2014,Business Support Community Services,Internal Trading Accounts,,ARCO LIMITED,00133804,20-08-2014,0000043000,67.5,0,Eez wipes,141100,Clothing Protective
South Lakeland District Council,http://opendatacommunities.org/id/district-council/south-lakeland,31/08/2014,Environment and Housing,Housing Services,http://opendatacommunities.org/def/concept/finance/sercop/objective/108,NORTHERN HOUSING CONSORTIUM LTD,04361009,20-08-2014,0000043001,399,0,Northern Housing Summit 6-7 November,250000,Housing
South Lakeland District Council,http://opendatacommunities.org/id/district-council/south-lakeland,31/08/2014,Business Support Community Services,Housing Services,http://opendatacommunities.org/def/concept/finance/sercop/objective/108,KENDAL SECURITY CENTRE LTD,03179893,20-08-2014,0000043002,65,0,Call out fee and new key for room 8,192212,Facilities Security Equipment
South Lakeland District Council,http://opendatacommunities.org/id/district-council/south-lakeland,31/08/2014,Business Support Community Services,Housing Services,http://opendatacommunities.org/def/concept/finance/sercop/objective/108,KENDAL SECURITY CENTRE LTD,03179893,13-08-2014,0000043003,85,0,Locksmiths for Beasts Bank,192212,Facilities Security Equipment
South Lakeland District Council,http://opendatacommunities.org/id/district-council/south-lakeland,31/08/2014,Business Support Community Services,Internal Trading Accounts,,POST OFFICE LTD,2154540,21-08-2014,0000043004,165,0,Licence SL002,141000,Clothing Childrens & Adults
South Lakeland District Council,http://opendatacommunities.org/id/district-council/south-lakeland,31/08/2014,Coronation Hall,Cultural Environmental Regulatory & Planning Services,http://opendatacommunities.org/def/concept/finance/sercop/objective/104,ST JOHN AMBULANCE CUMBRIA,,20-08-2014,0000043005,52.8,0,FAO ,311600,Healthcare Services
South Lakeland District Council,http://opendatacommunities.org/id/district-council/south-lakeland,31/08/2014,Development Implementation,Cultural Environmental Regulatory & Planning Services,http://opendatacommunities.org/def/concept/finance/sercop/objective/104,SKV Communications,03495502,20-08-2014,0000043006,3090,0,Provision of PR/Marketing Support for,191800,Facilities Public Relations & Image
South Lakeland District Council,http://opendatacommunities.org/id/district-council/south-lakeland,31/08/2014,Business Support Community Services,Internal Trading Accounts,,A & W COMMERCIALS LTD,02630625,20-08-2014,0000043007,97.5,0,Hydraulic hose,381400,Vehicle Mgt Maintenance
South Lakeland District Council,http://opendatacommunities.org/id/district-council/south-lakeland,31/08/2014,Business Support Community Services,Environment Regulatory,,STRAIGHT MANUFACTURING PLC,,20-08-2014,0000043008,12109.5,0,240 litre Wheeled Bin (green) @ ?17.25,182011,Environment Waste Management Consumables
South Lakeland District Council,http://opendatacommunities.org/id/district-council/south-lakeland,31/08/2014,Financial Services,Central Services,http://opendatacommunities.org/def/concept/finance/sercop/objective/102,BOTTOMLINE TECHNOLOGIES EUROPE LTD,03693514,18-08-2014,0000043011,96.3,0,Consultant's expenses from recent visit,271600,ICT Software Customised & Bespoke
South Lakeland District Council,http://opendatacommunities.org/id/district-council/south-lakeland,31/08/2014,Social Enterprise Admin,Cultural Environmental Regulatory & Planning Services,http://opendatacommunities.org/def/concept/finance/sercop/objective/104,NEWSQUEST MEDIA GROUP LTD,03102566,27-08-2014,0000043012,113,0,PUBLIC NOTICES FOR PLANNIG DEPARTMENT.,191000,Facilities Advertising
South Lakeland District Council,http://opendatacommunities.org/id/district-council/south-lakeland,31/08/2014,Business Support Community Services,Housing Services,http://opendatacommunities.org/def/concept/finance/sercop/objective/108,GATES TRAVEL SERVICE,,13-08-2014,0000043015,24,0,Train ticket for Kendal to,261600,HR Travel & Subsistence
South Lakeland District Council,http://opendatacommunities.org/id/district-council/south-lakeland,31/08/2014,Social Enterprise Admin,Central Services,http://opendatacommunities.org/def/concept/finance/sercop/objective/102,GATES TRAVEL SERVICE,,18-08-2014,0000043016,57.5,0,TRAVEL FOR  PETERBOROUGH 4TH,261600,HR Travel & Subsistence
South Lakeland District Council,http://opendatacommunities.org/id/district-council/south-lakeland,31/08/2014,Business Support Community Services,Internal Trading Accounts,,SITA UK LTD,2291198,18-08-2014,0000043017,34122.43,0,"Tipping & disposal charges, recyclables",182015,Environment Waste Mgt Waste Disposal
South Lakeland District Council,http://opendatacommunities.org/id/district-council/south-lakeland,31/08/2014,Financial Services,Central Services,http://opendatacommunities.org/def/concept/finance/sercop/objective/102,GREATER MANCHESTER PENSION FUND,,13-08-2014,0000043018,274.84,0,Qtr contribution re past pensions,908999,Public Bodies Not Elsewhere Classified
South Lakeland District Council,http://opendatacommunities.org/id/district-council/south-lakeland,31/08/2014,Business Support Community Services,Internal Trading Accounts,,HAKO MACHINES LIMITED,01414225,27-08-2014,0000043019,5043.99,0,Hire of KX60 AOS - 2013/14,131000,Cleaning & Janitorial Cleaning Materials
South Lakeland District Council,http://opendatacommunities.org/id/district-council/south-lakeland,31/08/2014,Coronation Hall,External Trading Accounts,,SHORROCK TRICHEM,04179799,18-08-2014,0000043020,92.96,0,Hand foam wash (purple) toilets 6 x 1,131312,Cleaning & Janitorial Washroom Sanitat
South Lakeland District Council,http://opendatacommunities.org/id/district-council/south-lakeland,31/08/2014,Coronation Hall,Cultural Environmental Regulatory & Planning Services,http://opendatacommunities.org/def/concept/finance/sercop/objective/104,FURNESS NEWSPAPERS LTD,01155841,13-08-2014,0000043021,50,0,FAO ,191000,Facilities Advertising
South Lakeland District Council,http://opendatacommunities.org/id/district-council/south-lakeland,31/08/2014,Coronation Hall,Cultural Environmental Regulatory & Planning Services,http://opendatacommunities.org/def/concept/finance/sercop/objective/104,Monster Monster,,20-08-2014,0000043022,400,0,Work on Facebook and Twitter to y/e 31,999999,Unclassifiable
South Lakeland District Council,http://opendatacommunities.org/id/district-council/south-lakeland,31/08/2014,Development Implementation,Cultural Environmental Regulatory & Planning Services,http://opendatacommunities.org/def/concept/finance/sercop/objective/104,H & H REEDS PRINTERS LTD,00139166,13-08-2014,0000043023,146,0,A1 large format water/tear resistant,191100,Facilities Design & Photography
South Lakeland District Council,http://opendatacommunities.org/id/district-council/south-lakeland,31/08/2014,Business Support Community Services,Central Services,http://opendatacommunities.org/def/concept/finance/sercop/objective/102,TOUCHDOWN OFFICES LTD,04844444,13-08-2014,0000043024,186.23,0,Call charges to 30/04,271700,ICT Telecommunications Fixed
South Lakeland District Council,http://opendatacommunities.org/id/district-council/south-lakeland,31/08/2014,Policy & Partnerships,Cultural Environmental Regulatory & Planning Services,http://opendatacommunities.org/def/concept/finance/sercop/objective/104,Helsington and Brigsteer Village Hall,07002835,13-08-2014,0000043025,26,0,South Westmorland LAP Meeting,192110,Facilities Room Hire
South Lakeland District Council,http://opendatacommunities.org/id/district-council/south-lakeland,31/08/2014,Business Support Community Services,Cultural Environmental Regulatory & Planning Services,http://opendatacommunities.org/def/concept/finance/sercop/objective/104,LAKELAND SUPPLIES,,13-08-2014,0000043026,16.49,0,Eliza 3841-070 Orange Poly Rope 7mm,101610,Building Hand Tools
South Lakeland District Council,http://opendatacommunities.org/id/district-council/south-lakeland,31/08/2014,Business Support Community Services,Internal Trading Accounts,,EK MOTOR FACTORS LTD,00838524,20-08-2014,0000043027,37.2,0,Oil,381400,Vehicle Mgt Maintenance
South Lakeland District Council,http://opendatacommunities.org/id/district-council/south-lakeland,31/08/2014,Business Support Community Services,Cultural Environmental Regulatory & Planning Services,http://opendatacommunities.org/def/concept/finance/sercop/objective/104,OCS GROUP LTD T/A CANNON HYGIENE LTD,01298292,20-08-2014,0000043028,44.54,0,Clinical waste collections - August,131011,Cleaning & Janitorial Cleaning Materials
South Lakeland District Council,http://opendatacommunities.org/id/district-council/south-lakeland,31/08/2014,Business Support Community Services,Cultural Environmental Regulatory & Planning Services,http://opendatacommunities.org/def/concept/finance/sercop/objective/104,LAKELAND SUPPLIES,,13-08-2014,0000043029,75.89,0,Eliza 3841-070 Orange Poly Rope 7mm,101610,Building Hand Tools
South Lakeland District Council,http://opendatacommunities.org/id/district-council/south-lakeland,31/08/2014,Revenues and Benefits,Central Services,http://opendatacommunities.org/def/concept/finance/sercop/objective/102,MERITEC LTD,03224622,20-08-2014,0000043030,697.5,0,RAB Processing Contract and Agency,391200,Construction Engineering
South Lakeland District Council,http://opendatacommunities.org/id/district-council/south-lakeland,31/08/2014,Social Enterprise Admin,Cultural Environmental Regulatory & Planning Services,http://opendatacommunities.org/def/concept/finance/sercop/objective/104,NEWSQUEST MEDIA GROUP LTD,03102566,27-08-2014,0000043031,95,0,PUBLIC NOTICES FOR PLANNIG DEPARTMENT.,191000,Facilities Advertising
South Lakeland District Council,http://opendatacommunities.org/id/district-council/south-lakeland,31/08/2014,Business Support Community Services,Internal Trading Accounts,,JOHNSTON SWEEPERS LTD,00199841,20-08-2014,0000043032,182.78,0,Switch,181600,Environment Street Cleansing
South Lakeland District Council,http://opendatacommunities.org/id/district-council/south-lakeland,31/08/2014,Social Enterprise Admin,Cultural Environmental Regulatory & Planning Services,http://opendatacommunities.org/def/concept/finance/sercop/objective/104,Sutcliffe Play Scotland Ltd,SC359176,27-08-2014,0000043033,2144,0,Quote no. SPS2014/269,331000,Sports Playground Equipment
South Lakeland District Council,http://opendatacommunities.org/id/district-council/south-lakeland,31/08/2014,Development Strategy,Cultural Environmental Regulatory & Planning Services,http://opendatacommunities.org/def/concept/finance/sercop/objective/104,THE QUAKER TAPESTRY KENDAL LTD,,13-08-2014,0000043034,154.5,0,Room hire for CIL training (156.00) plus,291400,Arts & Leisure Services Sport & Fitness
South Lakeland District Council,http://opendatacommunities.org/id/district-council/south-lakeland,31/08/2014,Development Strategy,Cultural Environmental Regulatory & Planning Services,http://opendatacommunities.org/def/concept/finance/sercop/objective/104,THE QUAKER TAPESTRY KENDAL LTD,,13-08-2014,0000043034,154.5,0,Room hire for CIL training (156.00) plus,291400,Arts & Leisure Services Sport & Fitness
South Lakeland District Council,http://opendatacommunities.org/id/district-council/south-lakeland,31/08/2014,Human Resources,Central Services,http://opendatacommunities.org/def/concept/finance/sercop/objective/102,THE QUAKER TAPESTRY KENDAL LTD,,18-08-2014,0000043035,196,0,Children's room hire for 22 people   1,291400,Arts & Leisure Services Sport & Fitness
South Lakeland District Council,http://opendatacommunities.org/id/district-council/south-lakeland,31/08/2014,Kendal Town Hall,Central Services,http://opendatacommunities.org/def/concept/finance/sercop/objective/102,BERENDSEN UK LTD,00228604,13-08-2014,0000043036,76.5,0,Rental and weekly replacement of the 2,161000,Domestic Goods Commercial
South Lakeland District Council,http://opendatacommunities.org/id/district-council/south-lakeland,31/08/2014,Kendal Town Hall,Cultural Environmental Regulatory & Planning Services,http://opendatacommunities.org/def/concept/finance/sercop/objective/104,BERENDSEN UK LTD,00228604,13-08-2014,0000043036,29.25,0,Rental and weekly replacement of the 2,161000,Domestic Goods Commercial
South Lakeland District Council,http://opendatacommunities.org/id/district-council/south-lakeland,31/08/2014,Social Enterprise Admin,Cultural Environmental Regulatory & Planning Services,http://opendatacommunities.org/def/concept/finance/sercop/objective/104,RTPI Conferences,,27-08-2014,0000043037,299,0,TO ATTEND POCA IN,261500,HR Training & Conferences
South Lakeland District Council,http://opendatacommunities.org/id/district-council/south-lakeland,31/08/2014,Business Support Community Services,Housing Services,http://opendatacommunities.org/def/concept/finance/sercop/objective/108,ULVERSTON MEDICAL SERVICES LTD,,01-09-2014,0000043038,50,0,Medical advice ,311600,Healthcare Services
South Lakeland District Council,http://opendatacommunities.org/id/district-council/south-lakeland,31/08/2014,Business Support Community Services,Internal Trading Accounts,,ARCO LIMITED,00133804,20-08-2014,0000043039,14.14,0,Bump cap,141100,Clothing Protective
South Lakeland District Council,http://opendatacommunities.org/id/district-council/south-lakeland,31/08/2014,Business Support Community Services,Internal Trading Accounts,,ARCO LIMITED,00133804,20-08-2014,0000043040,17.01,0,Eez wipes,141100,Clothing Protective
South Lakeland District Council,http://opendatacommunities.org/id/district-council/south-lakeland,31/08/2014,Business Support Community Services,Internal Trading Accounts,,ARCO LIMITED,00133804,20-08-2014,0000043040,305.08,0,Eez wipes,141100,Clothing Protective
South Lakeland District Council,http://opendatacommunities.org/id/district-council/south-lakeland,31/08/2014,Social Enterprise Admin,Highways & Transport Services,http://opendatacommunities.org/def/concept/finance/sercop/objective/107,G4S SECURE SOLUTIONS (UK) LTD,01046019,20-08-2014,0000043041,833.18,0,Patrol Services for South Lakeland House,192213,Facilities Security Manned Guarding
South Lakeland District Council,http://opendatacommunities.org/id/district-council/south-lakeland,31/08/2014,Business Support Community Services,Internal Trading Accounts,,FOSTERS COMMERCIALS LTD,01015850,20-08-2014,0000043042,722,0,Repair roller shutter doors,381400,Vehicle Mgt Maintenance
South Lakeland District Council,http://opendatacommunities.org/id/district-council/south-lakeland,31/08/2014,Business Support Community Services,Internal Trading Accounts,,FOSTERS COMMERCIALS LTD,01015850,20-08-2014,0000043043,378,0,Repair door,381400,Vehicle Mgt Maintenance
South Lakeland District Council,http://opendatacommunities.org/id/district-council/south-lakeland,31/08/2014,Business Support Community Services,Internal Trading Accounts,,BRIAN ARMISTEAD LTD T/A SINKFALL RECYCLI,04133280,20-08-2014,0000043044,1106.8,0,Green waste tipping - April (estimated),391110,Construction Buildings Construction
South Lakeland District Council,http://opendatacommunities.org/id/district-council/south-lakeland,31/08/2014,Social Enterprise Admin,Cultural Environmental Regulatory & Planning Services,http://opendatacommunities.org/def/concept/finance/sercop/objective/104,LAKE DISTRICT NATIONAL PARK AUTHORITY,,27-08-2014,0000043045,2197.69,0,FAO ,201700,Financial Services Grants
South Lakeland District Council,http://opendatacommunities.org/id/district-council/south-lakeland,31/08/2014,Policy & Partnerships,Cultural Environmental Regulatory & Planning Services,http://opendatacommunities.org/def/concept/finance/sercop/objective/104,THE SHAKESPEARE CENTRE,,13-08-2014,0000043046,33,0,Kendal LAP Room Hire 33.00,111200,Catering Food & Beverages
South Lakeland District Council,http://opendatacommunities.org/id/district-council/south-lakeland,31/08/2014,Financial Services,SLDC as Agent,,LAKELAND ESTATES (AMBLESIDE) LTD,03022544,13-08-2014,0000043047,22122.15,0,14/15 Millerfield Car Park Income,191700,Facilities Property Management
South Lakeland District Council,http://opendatacommunities.org/id/district-council/south-lakeland,31/08/2014,Financial Services,SLDC as Agent,,KIRKLAND TRUST (KENDAL),,13-08-2014,0000043048,4487.15,0,14/15 Kirkland Car Park Income,201700,Financial Services Grants
South Lakeland District Council,http://opendatacommunities.org/id/district-council/south-lakeland,31/08/2014,Business Support Community Services,Internal Trading Accounts,,FST CONSUMABLES LTD,01342012,20-08-2014,0000043049,176.35,0,Consumables 01/04/14 - 31/03/15,101600,Building Hand Tools
South Lakeland District Council,http://opendatacommunities.org/id/district-council/south-lakeland,31/08/2014,Environment and Housing,SLDC as Agent,,ABRITAS LTD,04101079,18-08-2014,0000043051,1730.82,0,To undertake changes to Cumbria Choice,151200,Consultancy Efficiency
South Lakeland District Council,http://opendatacommunities.org/id/district-council/south-lakeland,31/08/2014,Business Support Community Services,Internal Trading Accounts,,LANCASTER TRAINING SERVICES LTD,01447612,18-08-2014,0000043052,243.75,0,FLT Operator training,261500,HR Training & Conferences
South Lakeland District Council,http://opendatacommunities.org/id/district-council/south-lakeland,31/08/2014,Business Support Community Services,Internal Trading Accounts,,ARCO LIMITED,00133804,18-08-2014,0000043053,56.4,0,Eez wipes,141100,Clothing Protective
South Lakeland District Council,http://opendatacommunities.org/id/district-council/south-lakeland,31/08/2014,Business Support Community Services,Housing Services,http://opendatacommunities.org/def/concept/finance/sercop/objective/108,ADECCO UK LIMITED,00593232,18-08-2014,0000043055,82.16,0,Cleaner for Town View Fields,261400,HR Temporary & Agency Staff
South Lakeland District Council,http://opendatacommunities.org/id/district-council/south-lakeland,31/08/2014,Business Support Community Services,Housing Services,http://opendatacommunities.org/def/concept/finance/sercop/objective/108,ADECCO UK LIMITED,00593232,18-08-2014,0000043056,103.8,0,Cleaner for Town View Fields,261400,HR Temporary & Agency Staff
South Lakeland District Council,http://opendatacommunities.org/id/district-council/south-lakeland,31/08/2014,Policy & Partnerships,Cultural Environmental Regulatory & Planning Services,http://opendatacommunities.org/def/concept/finance/sercop/objective/104,STAVELEY WITH INGS PARISH COUNCIL,,18-08-2014,0000043057,1800,0,1800 to Staveley Youth Club - Staveley,908000,Public Bodies Council support services
South Lakeland District Council,http://opendatacommunities.org/id/district-council/south-lakeland,31/08/2014,Printing Section,Central Services,http://opendatacommunities.org/def/concept/finance/sercop/objective/102,ALPHATEC P.F.E,05419826,20-08-2014,0000043058,263.43,0,Potentionmeter for Guillotine,271400,ICT Office & Reprographics Equipment
South Lakeland District Council,http://opendatacommunities.org/id/district-council/south-lakeland,31/08/2014,Social Enterprise Admin,Cultural Environmental Regulatory & Planning Services,http://opendatacommunities.org/def/concept/finance/sercop/objective/104,WICKSTEED LEISURE LTD,00603152,27-08-2014,0000043060,149.73,0,1 x 2541-017 Self Aligning Bearing -,291400,Arts & Leisure Services Sport & Fitness
South Lakeland District Council,http://opendatacommunities.org/id/district-council/south-lakeland,31/08/2014,Social Enterprise Admin,Cultural Environmental Regulatory & Planning Services,http://opendatacommunities.org/def/concept/finance/sercop/objective/104,FURNESS NEWSPAPERS LTD,01155841,18-08-2014,0000043061,82.88,0,PUBLIC NOTICES FOR PLANNING DEPARTMENT,191000,Facilities Advertising
South Lakeland District Council,http://opendatacommunities.org/id/district-council/south-lakeland,31/08/2014,Policy & Partnerships,Cultural Environmental Regulatory & Planning Services,http://opendatacommunities.org/def/concept/finance/sercop/objective/104,BREWERY ARTS CENTRE,,27-08-2014,0000043062,30000,0,Strategic Cultural Partnership Grant -,291000,Arts & Leisure Services Events
South Lakeland District Council,http://opendatacommunities.org/id/district-council/south-lakeland,31/08/2014,Development Implementation,Culture and Related Serv,http://opendatacommunities.org/def/concept/finance/sercop/objective/104,NPS NORTH WEST LTD,06614601,27-08-2014,0000043063,950,0,CDM Works for Castle Dairy,391110,Construction Buildings Construction
South Lakeland District Council,http://opendatacommunities.org/id/district-council/south-lakeland,31/08/2014,Printing Section,Central Services,http://opendatacommunities.org/def/concept/finance/sercop/objective/102,ROSEFOX PAPER LIMITED,01655083,20-08-2014,0000043064,174.45,0,Paller of Paper One A4 80gsm,341000,Stationery Paper
South Lakeland District Council,http://opendatacommunities.org/id/district-council/south-lakeland,31/08/2014,Social Enterprise Admin,Transport,http://opendatacommunities.org/def/concept/finance/sercop/objective/107,NPS NORTH WEST LTD,06614601,27-08-2014,0000043065,4497.95,0,Project Management of bridge widening at,391110,Construction Buildings Construction
South Lakeland District Council,http://opendatacommunities.org/id/district-council/south-lakeland,31/08/2014,Revenues and Benefits,Central Services,http://opendatacommunities.org/def/concept/finance/sercop/objective/102,VODAFONE LTD (DIRECT DEBIT),,01-08-2014,0000043066,40,0,2014-15  Mobile Usage,271800,ICT Telecommunications Mobile
South Lakeland District Council,http://opendatacommunities.org/id/district-council/south-lakeland,31/08/2014,Policy & Partnerships,Cultural Environmental Regulatory & Planning Services,http://opendatacommunities.org/def/concept/finance/sercop/objective/104,KENDAL TOWN COUNCIL,,20-08-2014,0000043077,2000,0,Contribution to kendal town council,908000,Public Bodies Council support services
South Lakeland District Council,http://opendatacommunities.org/id/district-council/south-lakeland,31/08/2014,Environment and Housing,Housing Services,http://opendatacommunities.org/def/concept/finance/sercop/objective/108,James Andrews Recruitment Solutions,06834852,20-08-2014,0000043078,729,0,Salary for Agency staff,261400,HR Temporary & Agency Staff
South Lakeland District Council,http://opendatacommunities.org/id/district-council/south-lakeland,31/08/2014,Development Strategy,Housing Services,http://opendatacommunities.org/def/concept/finance/sercop/objective/108,MORGAN HUNT UK LIMITED,04349535,20-08-2014,0000043080,1448.92,0,work for South,269999,HR Not Elsewhere Classified
South Lakeland District Council,http://opendatacommunities.org/id/district-council/south-lakeland,31/08/2014,Development Management,Cultural Environmental Regulatory & Planning Services,http://opendatacommunities.org/def/concept/finance/sercop/objective/104,BSI (MEMBERSHIP),,18-08-2014,0000043082,745,0,BSI Subscribing Membership,202100,Financial Services Subscriptions
South Lakeland District Council,http://opendatacommunities.org/id/district-council/south-lakeland,31/08/2014,Revenues and Benefits,SLDC as Agent,,ROYAL MAIL GROUP PLC,,18-08-2014,0000043083,1144.97,0,2014-15  Postal Charges a/c 0198123013,301200,Mail Services� Postage
South Lakeland District Council,http://opendatacommunities.org/id/district-council/south-lakeland,31/08/2014,Revenues and Benefits,Central Services,http://opendatacommunities.org/def/concept/finance/sercop/objective/102,MERITEC LTD,03224622,01-09-2014,0000043084,558,0,RAB Processing Contract and Agency,391200,Construction Engineering
South Lakeland District Council,http://opendatacommunities.org/id/district-council/south-lakeland,31/08/2014,Revenues and Benefits,,,Kendal BID Ltd,08986243,18-08-2014,0000043085,7087.29,0,Collection Figures up to May 2014,201700,Financial Services Grants
South Lakeland District Council,http://opendatacommunities.org/id/district-council/south-lakeland,31/08/2014,Revenues and Benefits,,,Kendal BID Ltd,08986243,18-08-2014,0000043086,21707.12,0,Collection Figures for June 2014,201700,Financial Services Grants
South Lakeland District Council,http://opendatacommunities.org/id/district-council/south-lakeland,31/08/2014,Coronation Hall,Central Services,http://opendatacommunities.org/def/concept/finance/sercop/objective/102,OLTEC GROUP CLEANING & JANITORIAL SUPPLI,,01-09-2014,0000043087,94.8,0,Cleaning of Ulverston Town Hall up to 31,261300,HR Recruitment & Assessment
South Lakeland District Council,http://opendatacommunities.org/id/district-council/south-lakeland,31/08/2014,Coronation Hall,Central Services,http://opendatacommunities.org/def/concept/finance/sercop/objective/102,OLTEC GROUP CLEANING & JANITORIAL SUPPLI,,01-09-2014,0000043088,94.8,0,Cleaning of Ulverston Town Hall up to 31,261300,HR Recruitment & Assessment
South Lakeland District Council,http://opendatacommunities.org/id/district-council/south-lakeland,31/08/2014,Coronation Hall,Central Services,http://opendatacommunities.org/def/concept/finance/sercop/objective/102,OLTEC GROUP CLEANING & JANITORIAL SUPPLI,,01-09-2014,0000043089,94.8,0,Cleaning of Ulverston Town Hall up to 31,261300,HR Recruitment & Assessment
South Lakeland District Council,http://opendatacommunities.org/id/district-council/south-lakeland,31/08/2014,Coronation Hall,Central Services,http://opendatacommunities.org/def/concept/finance/sercop/objective/102,OLTEC GROUP CLEANING & JANITORIAL SUPPLI,,01-09-2014,0000043090,94.8,0,Cleaning of Ulverston Town Hall up to 31,261300,HR Recruitment & Assessment
South Lakeland District Council,http://opendatacommunities.org/id/district-council/south-lakeland,31/08/2014,Coronation Hall,Central Services,http://opendatacommunities.org/def/concept/finance/sercop/objective/102,OLTEC GROUP CLEANING & JANITORIAL SUPPLI,,01-09-2014,0000043091,94.8,0,Cleaning of Ulverston Town Hall up to 31,261300,HR Recruitment & Assessment
South Lakeland District Council,http://opendatacommunities.org/id/district-council/south-lakeland,31/08/2014,Social Enterprise Admin,Cultural Environmental Regulatory & Planning Services,http://opendatacommunities.org/def/concept/finance/sercop/objective/104,LAKELAND SUPPLIES,,18-08-2014,0000043092,19.43,0,Please supply,101610,Building Hand Tools
South Lakeland District Council,http://opendatacommunities.org/id/district-council/south-lakeland,31/08/2014,Business Support Community Services,Internal Trading Accounts,,Harry Park Tyres Ltd,08131208,27-08-2014,0000043097,176,0,Tyre,381500,Vehicle Mgt Parts
South Lakeland District Council,http://opendatacommunities.org/id/district-council/south-lakeland,31/08/2014,Business Support Community Services,Internal Trading Accounts,,Harry Park Tyres Ltd,08131208,27-08-2014,0000043098,59.95,0,Tyre,381500,Vehicle Mgt Parts
South Lakeland District Council,http://opendatacommunities.org/id/district-council/south-lakeland,31/08/2014,Business Support Community Services,Internal Trading Accounts,,Harry Park Tyres Ltd,08131208,27-08-2014,0000043099,1068,0,Tyre,381500,Vehicle Mgt Parts
South Lakeland District Council,http://opendatacommunities.org/id/district-council/south-lakeland,31/08/2014,Business Support Community Services,Internal Trading Accounts,,GARWOOD EUROPE LTD,04333504,27-08-2014,0000043100,40.76,0,Switch,182011,Environment Waste Management Consumables
South Lakeland District Council,http://opendatacommunities.org/id/district-council/south-lakeland,31/08/2014,Policy & Partnerships,Cultural Environmental Regulatory & Planning Services,http://opendatacommunities.org/def/concept/finance/sercop/objective/104,Stainton Institute,,18-08-2014,0000043108,3000,0,Stainton Institution Renovation.,391111,Construction Buildings Repair & Mtce
South Lakeland District Council,http://opendatacommunities.org/id/district-council/south-lakeland,31/08/2014,Business Support Community Services,Housing Services,http://opendatacommunities.org/def/concept/finance/sercop/objective/108,Landlord,,18-08-2014,0000043109,1190,0,"Monthly rent forKentworks, 1",202000,Financial Services Rents
South Lakeland District Council,http://opendatacommunities.org/id/district-council/south-lakeland,31/08/2014,Social Enterprise Admin,Cultural Environmental Regulatory & Planning Services,http://opendatacommunities.org/def/concept/finance/sercop/objective/104,Matchtech,02526418,20-08-2014,0000043110,54.94,0,TO SUPPLY DEVELOPMENT CONTROL TEAM,261300,HR Recruitment & Assessment
South Lakeland District Council,http://opendatacommunities.org/id/district-council/south-lakeland,31/08/2014,Social Enterprise Admin,Cultural Environmental Regulatory & Planning Services,http://opendatacommunities.org/def/concept/finance/sercop/objective/104,Matchtech,02526418,20-08-2014,0000043111,2.05,0,TO SUPPLY DEVELOPMENT CONTROL TEAM,261300,HR Recruitment & Assessment
South Lakeland District Council,http://opendatacommunities.org/id/district-council/south-lakeland,31/08/2014,Coronation Hall,External Trading Accounts,,Morson International,,18-08-2014,0000043112,79.52,0,Ulverston Market Hall cleaner from April,261300,HR Recruitment & Assessment
South Lakeland District Council,http://opendatacommunities.org/id/district-council/south-lakeland,31/08/2014,Social Enterprise Admin,Cultural Environmental Regulatory & Planning Services,http://opendatacommunities.org/def/concept/finance/sercop/objective/104,THE NATIONAL TRUST,,27-08-2014,0000043113,100,0,Bark barn jetty 28 March 2014- 27 March,202100,Financial Services Subscriptions
South Lakeland District Council,http://opendatacommunities.org/id/district-council/south-lakeland,31/08/2014,Printing Section,Central Services,http://opendatacommunities.org/def/concept/finance/sercop/objective/102,ALPHATEC P.F.E,05419826,01-09-2014,0000043114,63.18,0,Strikers for staple heads on booklet,271400,ICT Office & Reprographics Equipment
South Lakeland District Council,http://opendatacommunities.org/id/district-council/south-lakeland,31/08/2014,Development Strategy,Cultural Environmental Regulatory & Planning Services,http://opendatacommunities.org/def/concept/finance/sercop/objective/104,Matchtech,02526418,20-08-2014,0000043115,833.7,0,"12-week contract, 30hrs",261300,HR Recruitment & Assessment
South Lakeland District Council,http://opendatacommunities.org/id/district-council/south-lakeland,31/08/2014,Social Enterprise Admin,Cultural Environmental Regulatory & Planning Services,http://opendatacommunities.org/def/concept/finance/sercop/objective/104,Matchtech,02526418,20-08-2014,0000043116,1068.19,0,TO SUPPLY DEVELOPMENT CONTROL TEAM,261300,HR Recruitment & Assessment
South Lakeland District Council,http://opendatacommunities.org/id/district-council/south-lakeland,31/08/2014,Social Enterprise Admin,Central Services,http://opendatacommunities.org/def/concept/finance/sercop/objective/102,ADECCO UK LIMITED,00593232,27-08-2014,0000043117,530.21,0,TEMPORARY GAZETTEER OFFICER,261400,HR Temporary & Agency Staff
South Lakeland District Council,http://opendatacommunities.org/id/district-council/south-lakeland,31/08/2014,Social Enterprise Admin,Central Services,http://opendatacommunities.org/def/concept/finance/sercop/objective/102,ADECCO UK LIMITED,00593232,20-08-2014,0000043118,214.95,0,TEMPORARY GAZETTEER OFFICER,261400,HR Temporary & Agency Staff
South Lakeland District Council,http://opendatacommunities.org/id/district-council/south-lakeland,31/08/2014,Business Support Community Services,Housing Services,http://opendatacommunities.org/def/concept/finance/sercop/objective/108,ADECCO UK LIMITED,00593232,18-08-2014,0000043119,71.89,0,Cleaner for Town View Fields,261400,HR Temporary & Agency Staff
South Lakeland District Council,http://opendatacommunities.org/id/district-council/south-lakeland,31/08/2014,Revenues and Benefits,Central Services,http://opendatacommunities.org/def/concept/finance/sercop/objective/102,BADENOCH & CLARK,1356186,18-08-2014,0000043120,560.07,0,Revs and Bens,261300,HR Recruitment & Assessment
South Lakeland District Council,http://opendatacommunities.org/id/district-council/south-lakeland,31/08/2014,Business Support Community Services,Housing Services,http://opendatacommunities.org/def/concept/finance/sercop/objective/108,James Andrews Recruitment Solutions,06834852,18-08-2014,0000043122,912.5,0,Payment for,261400,HR Temporary & Agency Staff
South Lakeland District Council,http://opendatacommunities.org/id/district-council/south-lakeland,31/08/2014,Environment and Housing,Housing Services,http://opendatacommunities.org/def/concept/finance/sercop/objective/108,CUMBRIA RURAL HOUSING TRUST,02920997,18-08-2014,0000043123,833.33,0,Enabling contract 1/4/14 - 30/9/14,250000,Housing
South Lakeland District Council,http://opendatacommunities.org/id/district-council/south-lakeland,31/08/2014,Business Support Community Services,Housing Services,http://opendatacommunities.org/def/concept/finance/sercop/objective/108,BUNZL CLEANING & HYGIENE SUPPLIES,2902454,18-08-2014,0000043124,195.64,0,065005 - Toilet Tissue 1 box,131011,Cleaning & Janitorial Cleaning Materials
South Lakeland District Council,http://opendatacommunities.org/id/district-council/south-lakeland,31/08/2014,Business Support Community Services,Housing Services,http://opendatacommunities.org/def/concept/finance/sercop/objective/108,BUNZL CLEANING & HYGIENE SUPPLIES,2902454,18-08-2014,0000043125,2.99,0,065005 - Toilet Tissue 1 box,131011,Cleaning & Janitorial Cleaning Materials
South Lakeland District Council,http://opendatacommunities.org/id/district-council/south-lakeland,31/08/2014,Business Support Community Services,Internal Trading Accounts,,Masterstaff Limited,02777593,18-08-2014,0000043126,381.56,0, - July 2014,261300,HR Recruitment & Assessment
South Lakeland District Council,http://opendatacommunities.org/id/district-council/south-lakeland,31/08/2014,Business Support Community Services,Internal Trading Accounts,,Masterstaff Limited,02777593,18-08-2014,0000043127,480,0, - July 2014,261300,HR Recruitment & Assessment
South Lakeland District Council,http://opendatacommunities.org/id/district-council/south-lakeland,31/08/2014,Business Support Community Services,Internal Trading Accounts,,Masterstaff Limited,02777593,18-08-2014,0000043128,472.7,0, - July 2014,261300,HR Recruitment & Assessment
South Lakeland District Council,http://opendatacommunities.org/id/district-council/south-lakeland,31/08/2014,Business Support Community Services,Internal Trading Accounts,,Masterstaff Limited,02777593,18-08-2014,0000043129,472.7,0, - July 2014,261300,HR Recruitment & Assessment
South Lakeland District Council,http://opendatacommunities.org/id/district-council/south-lakeland,31/08/2014,Business Support Community Services,Internal Trading Accounts,,HAKO MACHINES LIMITED,01414225,27-08-2014,0000043130,-3084.46,,Hire of KX60 AOS - 2013/14,131000,Cleaning & Janitorial Cleaning Materials
South Lakeland District Council,http://opendatacommunities.org/id/district-council/south-lakeland,31/08/2014,Lake Wardens,Cultural Environmental Regulatory & Planning Services,http://opendatacommunities.org/def/concept/finance/sercop/objective/104,RIBBLESDALE AUTO ELECTRICS 1992 LTD,02732686,27-08-2014,0000043131,27.96,0,2 x 0335.46 Solenoids,381500,Vehicle Mgt Parts
South Lakeland District Council,http://opendatacommunities.org/id/district-council/south-lakeland,31/08/2014,Kendal Town Hall,Central Services,http://opendatacommunities.org/def/concept/finance/sercop/objective/102,HYGIENE CLEANING SUPPLIES LTD,04753934,01-09-2014,0000043132,469.92,0,4 boxes of Tork Advanced Centre Feed,131011,Cleaning & Janitorial Cleaning Materials
South Lakeland District Council,http://opendatacommunities.org/id/district-council/south-lakeland,31/08/2014,Business Support Community Services,Housing Services,http://opendatacommunities.org/def/concept/finance/sercop/objective/108,GATES TRAVEL SERVICE,,01-09-2014,0000043133,13.2,0,Train ticket ,261600,HR Travel & Subsistence
South Lakeland District Council,http://opendatacommunities.org/id/district-council/south-lakeland,31/08/2014,Social Enterprise Admin,Highways & Transport Services,http://opendatacommunities.org/def/concept/finance/sercop/objective/107,MOUCHEL LTD,01686040,01-09-2014,0000043139,42.16,0,DVLA checks from 1 April 2014 to 31,351400,Street & Traffic Traffic Control
South Lakeland District Council,http://opendatacommunities.org/id/district-council/south-lakeland,31/08/2014,Social Enterprise Admin,Cultural Environmental Regulatory & Planning Services,http://opendatacommunities.org/def/concept/finance/sercop/objective/104,NPS NORTH WEST LTD,06614601,27-08-2014,0000043140,320,0,FINANCIAL VIABILITY ASSESSMENT,391110,Construction Buildings Construction
South Lakeland District Council,http://opendatacommunities.org/id/district-council/south-lakeland,31/08/2014,Lake Wardens,Cultural Environmental Regulatory & Planning Services,http://opendatacommunities.org/def/concept/finance/sercop/objective/104,RS COMPONENTS LTD,01002091,20-08-2014,0000043141,29.63,0,1 x Box of Countersunk Socket Screws,101100,Building Electrical
South Lakeland District Council,http://opendatacommunities.org/id/district-council/south-lakeland,31/08/2014,Lake Wardens,Cultural Environmental Regulatory & Planning Services,http://opendatacommunities.org/def/concept/finance/sercop/objective/104,RS COMPONENTS LTD,01002091,20-08-2014,0000043141,29.28,0,1 x Box of Countersunk Socket Screws,101100,Building Electrical
South Lakeland District Council,http://opendatacommunities.org/id/district-council/south-lakeland,31/08/2014,Social Enterprise Admin,Central Services,http://opendatacommunities.org/def/concept/finance/sercop/objective/102,LAKE DISTRICT NATIONAL PARK AUTHORITY,,01-09-2014,0000043142,3335,0,LAND CHARGE SEARCH ENQUIRIES LDNPA,201700,Financial Services Grants
South Lakeland District Council,http://opendatacommunities.org/id/district-council/south-lakeland,31/08/2014,Revenues and Benefits,Central Services,http://opendatacommunities.org/def/concept/finance/sercop/objective/102,Victoria Pink Transcription,,18-08-2014,0000043147,49.63,0,Audio Interviews Transcripts,271400,ICT Office & Reprographics Equipment
South Lakeland District Council,http://opendatacommunities.org/id/district-council/south-lakeland,31/08/2014,Human Resources,Non-Service Payments,,CYCLESCHEME LTD,05363678,18-08-2014,0000043151,415.83,0,cycle W242891,389999,Vehicle Mgt Not Else Class
South Lakeland District Council,http://opendatacommunities.org/id/district-council/south-lakeland,31/08/2014,Business Support Community Services,Internal Trading Accounts,,AINSWORTH'S GARAGE,,27-08-2014,0000043153,212.5,0,Recover SL075,381400,Vehicle Mgt Maintenance
South Lakeland District Council,http://opendatacommunities.org/id/district-council/south-lakeland,31/08/2014,Business Support Community Services,Internal Trading Accounts,,TECHNIJET LTD,02776601,20-08-2014,0000043154,216.08,0,Repair pressure washer at Ecclerigg,139999,Cleaning & Janitorial Not Elsewhere Clas
South Lakeland District Council,http://opendatacommunities.org/id/district-council/south-lakeland,31/08/2014,Business Support Community Services,Internal Trading Accounts,,SITA UK LTD,2291198,27-08-2014,0000043156,695.7,0,"Tipping & disposal charges, recyclables",182015,Environment Waste Mgt Waste Disposal
South Lakeland District Council,http://opendatacommunities.org/id/district-council/south-lakeland,31/08/2014,Business Support Community Services,Internal Trading Accounts,,Harry Park Tyres Ltd,08131208,20-08-2014,0000043157,12.5,0,Tyres,381500,Vehicle Mgt Parts
South Lakeland District Council,http://opendatacommunities.org/id/district-council/south-lakeland,31/08/2014,Business Support Community Services,Internal Trading Accounts,,Harry Park Tyres Ltd,08131208,20-08-2014,0000043158,12.5,0,Tyres,381500,Vehicle Mgt Parts
South Lakeland District Council,http://opendatacommunities.org/id/district-council/south-lakeland,31/08/2014,Business Support Community Services,Internal Trading Accounts,,Harry Park Tyres Ltd,08131208,20-08-2014,0000043159,60,0,Tyres,381500,Vehicle Mgt Parts
South Lakeland District Council,http://opendatacommunities.org/id/district-council/south-lakeland,31/08/2014,Business Support Community Services,Internal Trading Accounts,,Harry Park Tyres Ltd,08131208,20-08-2014,0000043160,90,0,Tyres,381500,Vehicle Mgt Parts
South Lakeland District Council,http://opendatacommunities.org/id/district-council/south-lakeland,31/08/2014,Business Support Community Services,Internal Trading Accounts,,Harry Park Tyres Ltd,08131208,20-08-2014,0000043161,1448,0,Tyres,381500,Vehicle Mgt Parts
South Lakeland District Council,http://opendatacommunities.org/id/district-council/south-lakeland,31/08/2014,Business Support Community Services,Transport Planning Policy,http://opendatacommunities.org/def/concept/finance/sercop/objective/107,CASTLE ALARMS 1981 LTD,09231500,20-08-2014,0000043162,210,0,Broadband connection,192212,Facilities Security Equipment
South Lakeland District Council,http://opendatacommunities.org/id/district-council/south-lakeland,31/08/2014,Business Support Community Services,Internal Trading Accounts,,BOC GASES,337663,20-08-2014,0000043163,422.6,0,Oxi,371100,Utilities Gas
South Lakeland District Council,http://opendatacommunities.org/id/district-council/south-lakeland,31/08/2014,Business Support Community Services,Internal Trading Accounts,,ALLSTAR BUSINESS SOLUTIONS LTD (NCR),2631112,01-09-2014,0000043164,4225.41,0,Fuel to 15/8,381600,Vehicle Mgt Leasing
South Lakeland District Council,http://opendatacommunities.org/id/district-council/south-lakeland,31/08/2014,Business Support Community Services,Internal Trading Accounts,,ALLSTAR BUSINESS SOLUTIONS LTD (NCR),2631112,01-09-2014,0000043164,40.45,0,Fuel to 15/8,381600,Vehicle Mgt Leasing
South Lakeland District Council,http://opendatacommunities.org/id/district-council/south-lakeland,31/08/2014,Business Support Community Services,Internal Trading Accounts,,ALLSTAR BUSINESS SOLUTIONS LTD (NCR),2631112,01-09-2014,0000043164,14555.48,0,Fuel to 15/8,381600,Vehicle Mgt Leasing
South Lakeland District Council,http://opendatacommunities.org/id/district-council/south-lakeland,31/08/2014,Development Implementation,Cultural Environmental Regulatory & Planning Services,http://opendatacommunities.org/def/concept/finance/sercop/objective/104,Shop Jacket Ltd,,01-09-2014,0000043167,600,0,"Kirkland Place, Kendal - fascia board",191700,Facilities Property Management
South Lakeland District Council,http://opendatacommunities.org/id/district-council/south-lakeland,31/08/2014,Development Implementation,Cultural Environmental Regulatory & Planning Services,http://opendatacommunities.org/def/concept/finance/sercop/objective/104,Shop Jacket Ltd,,01-09-2014,0000043168,2900,0,"Kirkland Place, Kendal - Shopjacket",191700,Facilities Property Management
South Lakeland District Council,http://opendatacommunities.org/id/district-council/south-lakeland,31/08/2014,Business Support Community Services,Internal Trading Accounts,,AUTOMOTIVE GLAZING SOLUTIONS,05922870,20-08-2014,0000043169,80,0,Fit windscreen,381400,Vehicle Mgt Maintenance
South Lakeland District Council,http://opendatacommunities.org/id/district-council/south-lakeland,31/08/2014,Printing Section,Central Services,http://opendatacommunities.org/def/concept/finance/sercop/objective/102,STANDING STONE DRAWING OFFICE SUPPLIES,05128817,01-09-2014,0000043177,232.13,0,12 x A0 rolls for the plotter,341100,Stationery Sundries
South Lakeland District Council,http://opendatacommunities.org/id/district-council/south-lakeland,31/08/2014,Business Support Community Services,Internal Trading Accounts,,H WICKS (LINDAL) LTD,00754590,01-09-2014,0000043178,2182.44,0,Paper handling - July (estimated),182012,Environment Waste Management Recycling
South Lakeland District Council,http://opendatacommunities.org/id/district-council/south-lakeland,31/08/2014,Business Support Community Services,Internal Trading Accounts,,JOHNSTON SWEEPERS LTD,00199841,01-09-2014,0000043179,146.8,0,Lamps,181600,Environment Street Cleansing
South Lakeland District Council,http://opendatacommunities.org/id/district-council/south-lakeland,31/08/2014,Financial Services,Central Services,http://opendatacommunities.org/def/concept/finance/sercop/objective/102,NEWSQUEST MEDIA GROUP LTD,03102566,27-08-2014,0000043180,1301,0,Councillor Allowances 2013/14,191000,Facilities Advertising
South Lakeland District Council,http://opendatacommunities.org/id/district-council/south-lakeland,31/08/2014,Social Enterprise Admin,Cultural Environmental Regulatory & Planning Services,http://opendatacommunities.org/def/concept/finance/sercop/objective/104,NEWSQUEST MEDIA GROUP LTD,03102566,27-08-2014,0000043181,167,0,PUBLIC NOTICES FOR PLANNIG DEPARTMENT.,191000,Facilities Advertising
South Lakeland District Council,http://opendatacommunities.org/id/district-council/south-lakeland,31/08/2014,Business Support Community Services,Internal Trading Accounts,,COMPASS COMPONENTS,,27-08-2014,0000043182,182.25,0,Consumables 01/04/14 - 31/03/15,101400,Building General Materials
South Lakeland District Council,http://opendatacommunities.org/id/district-council/south-lakeland,31/08/2014,Coronation Hall,Cultural Environmental Regulatory & Planning Services,http://opendatacommunities.org/def/concept/finance/sercop/objective/104,CONISTON CORPORATE EMBROIDERY UK LTD,02421673,27-08-2014,0000043183,24.58,0,Lady-fit polo in black size small code,149999,Clothing Not Elsewhere Classified
South Lakeland District Council,http://opendatacommunities.org/id/district-council/south-lakeland,31/08/2014,Financial Services,Central Services,http://opendatacommunities.org/def/concept/finance/sercop/objective/102,ALLPAY.NET LTD (NCR),6871069,01-08-2014,0000043184,25.47,0,31.07.2014 Inv. No. 38575 SLSD,209999,Financial Services Not Elsewhere Classif
South Lakeland District Council,http://opendatacommunities.org/id/district-council/south-lakeland,31/08/2014,Financial Services,Central Services,http://opendatacommunities.org/def/concept/finance/sercop/objective/102,ALLPAY.NET LTD (NCR),6871069,01-08-2014,0000043185,1160.87,0,31.07.2014 Inv. No. 38575 SLSD,209999,Financial Services Not Elsewhere Classif
South Lakeland District Council,http://opendatacommunities.org/id/district-council/south-lakeland,31/08/2014,Financial Services,Central Services,http://opendatacommunities.org/def/concept/finance/sercop/objective/102,ALLPAY.NET LTD (NCR),6871069,01-08-2014,0000043186,40.82,0,31.07.2014 Inv. No. 38575 SLSD,209999,Financial Services Not Elsewhere Classif
South Lakeland District Council,http://opendatacommunities.org/id/district-council/south-lakeland,31/08/2014,Financial Services,Central Services,http://opendatacommunities.org/def/concept/finance/sercop/objective/102,ALLPAY.NET LTD (NCR),6871069,01-08-2014,0000043187,685.77,0,31.07.2014 Inv. No. 38575 SLSD,209999,Financial Services Not Elsewhere Classif
South Lakeland District Council,http://opendatacommunities.org/id/district-council/south-lakeland,31/08/2014,Financial Services,Central Services,http://opendatacommunities.org/def/concept/finance/sercop/objective/102,ALLPAY.NET LTD (NCR),6871069,01-08-2014,0000043188,37.82,0,31.07.2014 Inv. No. 38575 SLSD,209999,Financial Services Not Elsewhere Classif
South Lakeland District Council,http://opendatacommunities.org/id/district-council/south-lakeland,31/08/2014,Kendal Town Hall,Central Services,http://opendatacommunities.org/def/concept/finance/sercop/objective/102,W MCCLURE LTD,00685360,01-09-2014,0000043189,17.5,0,8 boxes of Foxes Favourites for KTH,111200,Catering Food & Beverages
South Lakeland District Council,http://opendatacommunities.org/id/district-council/south-lakeland,31/08/2014,Kendal Town Hall,Cultural Environmental Regulatory & Planning Services,http://opendatacommunities.org/def/concept/finance/sercop/objective/104,W MCCLURE LTD,00685360,01-09-2014,0000043189,117.2,0,8 boxes of Foxes Favourites for KTH,111200,Catering Food & Beverages
South Lakeland District Council,http://opendatacommunities.org/id/district-council/south-lakeland,31/08/2014,Social Enterprise Admin,Cultural Environmental Regulatory & Planning Services,http://opendatacommunities.org/def/concept/finance/sercop/objective/104,ARB CONSULTANTS LTD,06082066,20-08-2014,0000043191,2900,0,Arboricultural contract April-Sept 14,159999,Consultancy Not Elsewhere Classified
South Lakeland District Council,http://opendatacommunities.org/id/district-council/south-lakeland,31/08/2014,Business Support Community Services,Housing Services,http://opendatacommunities.org/def/concept/finance/sercop/objective/108,Landlord,,20-08-2014,0000043192,890,0,Monthly rent payment,250000,Housing
South Lakeland District Council,http://opendatacommunities.org/id/district-council/south-lakeland,31/08/2014,Business Support Community Services,Housing Services,http://opendatacommunities.org/def/concept/finance/sercop/objective/108,Landlord,07803122,20-08-2014,0000043194,500,0,Monthly rent,250000,Housing
South Lakeland District Council,http://opendatacommunities.org/id/district-council/south-lakeland,31/08/2014,Social Enterprise Admin,Highways & Transport Services,http://opendatacommunities.org/def/concept/finance/sercop/objective/107,BEMROSE BOOTH PARAGON LTD,04891375,03-09-2014,0000043195,1779,0,"300,000 Aura self adhesive pay and",191600,Facilities Printing
South Lakeland District Council,http://opendatacommunities.org/id/district-council/south-lakeland,31/08/2014,Social Enterprise Admin,Highways & Transport Services,http://opendatacommunities.org/def/concept/finance/sercop/objective/107,BEMROSE BOOTH PARAGON LTD,04891375,03-09-2014,0000043196,-1350,,"300,000 Aura self adhesive pay and",191600,Facilities Printing
South Lakeland District Council,http://opendatacommunities.org/id/district-council/south-lakeland,31/08/2014,Social Enterprise Admin,Central Services,http://opendatacommunities.org/def/concept/finance/sercop/objective/102,Southerns Office Interiors Ltd,03478080,03-09-2014,0000043197,720,0,Please supply 4 Office Task chairs -,211200,Furniture & Soft Furn Office Furniture
South Lakeland District Council,http://opendatacommunities.org/id/district-council/south-lakeland,31/08/2014,Development Implementation,Central Services,http://opendatacommunities.org/def/concept/finance/sercop/objective/102,NPS NORTH WEST LTD,06614601,27-08-2014,0000043199,38333.33,0,Professional Property Services for,391110,Construction Buildings Construction
South Lakeland District Council,http://opendatacommunities.org/id/district-council/south-lakeland,31/08/2014,Business Support Community Services,Cultural Environmental Regulatory & Planning Services,http://opendatacommunities.org/def/concept/finance/sercop/objective/104,ALLSTAR BUSINESS SOLUTIONS LTD (NCR),2631112,01-09-2014,0000043200,49.6,0,Fuel - 6 August 2014,381600,Vehicle Mgt Leasing
South Lakeland District Council,http://opendatacommunities.org/id/district-council/south-lakeland,31/08/2014,Policy & Partnerships,Cultural Environmental Regulatory & Planning Services,http://opendatacommunities.org/def/concept/finance/sercop/objective/104,KENDAL ARTS INTERNATIONAL LTD,06036312,20-08-2014,0000043201,24000,0,Community Grant - year 2,291400,Arts & Leisure Services Sport & Fitness
South Lakeland District Council,http://opendatacommunities.org/id/district-council/south-lakeland,31/08/2014,Policy & Partnerships,Cultural Environmental Regulatory & Planning Services,http://opendatacommunities.org/def/concept/finance/sercop/objective/104,KENDAL ARTS INTERNATIONAL LTD,06036312,20-08-2014,0000043201,11000,0,Community Grant - year 2,291400,Arts & Leisure Services Sport & Fitness
South Lakeland District Council,http://opendatacommunities.org/id/district-council/south-lakeland,31/08/2014,ICT Group,Central Services,http://opendatacommunities.org/def/concept/finance/sercop/objective/102,IT PROFESSIONAL SERVICES (ITPS),,03-09-2014,0000043211,1500,0,3 2TB SATA Disks - IBM SAN,279999,ICT Not Elsewhere Classified
South Lakeland District Council,http://opendatacommunities.org/id/district-council/south-lakeland,31/08/2014,Revenues and Benefits,Central Services,http://opendatacommunities.org/def/concept/finance/sercop/objective/102,ROYAL MAIL GROUP PLC,,27-08-2014,0000043212,88.13,0,2014-15  Postal Charges a/c 0055114000,301200,Mail Services� Postage
South Lakeland District Council,http://opendatacommunities.org/id/district-council/south-lakeland,31/08/2014,Human Resources,Central Services,http://opendatacommunities.org/def/concept/finance/sercop/objective/102,EMPLOYMENT PAGES LTD,07363099,27-08-2014,0000043217,275.4,0,Advert for Street Care Operative,261400,HR Temporary & Agency Staff
South Lakeland District Council,http://opendatacommunities.org/id/district-council/south-lakeland,31/08/2014,Social Enterprise Admin,Cultural Environmental Regulatory & Planning Services,http://opendatacommunities.org/def/concept/finance/sercop/objective/104,NATHANIEL LICHFIELD & PARTNERS,02778116,27-08-2014,0000043218,1923.51,0,COMPLETION OF AUDIT KENDAL RUGBY CLUB,152200,Consultancy Technical & Feasibility
South Lakeland District Council,http://opendatacommunities.org/id/district-council/south-lakeland,31/08/2014,Printing Section,Central Services,http://opendatacommunities.org/def/concept/finance/sercop/objective/102,ROSEFOX PAPER LIMITED,01655083,01-09-2014,0000043219,390,0,Paller of Paper One A4 80gsm,341000,Stationery Paper
South Lakeland District Council,http://opendatacommunities.org/id/district-council/south-lakeland,31/08/2014,Development Strategy,Cultural Environmental Regulatory & Planning Services,http://opendatacommunities.org/def/concept/finance/sercop/objective/104,FURNESS NEWSPAPERS LTD,01155841,27-08-2014,0000043220,470.16,0,Legal Notice in NW Evening Mail on,191000,Facilities Advertising
South Lakeland District Council,http://opendatacommunities.org/id/district-council/south-lakeland,31/08/2014,Development Strategy,Cultural Environmental Regulatory & Planning Services,http://opendatacommunities.org/def/concept/finance/sercop/objective/104,FURNESS NEWSPAPERS LTD,01155841,27-08-2014,0000043221,331.52,0,Legal Notice in NW Evening Mail on,191000,Facilities Advertising
South Lakeland District Council,http://opendatacommunities.org/id/district-council/south-lakeland,31/08/2014,Business Support Community Services,Internal Trading Accounts,,BRIAN ARMISTEAD LTD T/A SINKFALL RECYCLI,04133280,01-09-2014,0000043224,1050.8,0,Green waste tipping - April (estimated),391110,Construction Buildings Construction
South Lakeland District Council,http://opendatacommunities.org/id/district-council/south-lakeland,31/08/2014,ICT Group,Central Services,http://opendatacommunities.org/def/concept/finance/sercop/objective/102,LAN2LAN Limited,,03-09-2014,0000043225,1095,0,Fortinet 100D 24x7 Bundle Renewal 1,279999,ICT Not Elsewhere Classified
South Lakeland District Council,http://opendatacommunities.org/id/district-council/south-lakeland,31/08/2014,ICT Group,Central Services,http://opendatacommunities.org/def/concept/finance/sercop/objective/102,LAN2LAN Limited,,03-09-2014,0000043225,1092,0,Fortinet 100D 24x7 Bundle Renewal 1,279999,ICT Not Elsewhere Classified
South Lakeland District Council,http://opendatacommunities.org/id/district-council/south-lakeland,31/08/2014,Development Management,Cultural Environmental Regulatory & Planning Services,http://opendatacommunities.org/def/concept/finance/sercop/objective/104,IHS (GLOBAL) LTD,00788737,27-08-2014,0000043226,1350.71,0,CIS Core Online Billing period 20/07/14,151000,Consultancy Business
South Lakeland District Council,http://opendatacommunities.org/id/district-council/south-lakeland,31/08/2014,Development Management,Cultural Environmental Regulatory & Planning Services,http://opendatacommunities.org/def/concept/finance/sercop/objective/104,IHS (GLOBAL) LTD,00788737,27-08-2014,0000043226,877.96,0,CIS Core Online Billing period 20/07/14,151000,Consultancy Business
South Lakeland District Council,http://opendatacommunities.org/id/district-council/south-lakeland,31/08/2014,Environment and Housing,Housing Services,http://opendatacommunities.org/def/concept/finance/sercop/objective/108,James Andrews Recruitment Solutions,06834852,27-08-2014,0000043241,729,0,Salary for Agency staff - ,261400,HR Temporary & Agency Staff
South Lakeland District Council,http://opendatacommunities.org/id/district-council/south-lakeland,31/08/2014,Policy & Partnerships,Cultural Environmental Regulatory & Planning Services,http://opendatacommunities.org/def/concept/finance/sercop/objective/104,Westmorland Youth Orchestra,,27-08-2014,0000043243,800,0,Community Grants - year 2,201700,Financial Services Grants
South Lakeland District Council,http://opendatacommunities.org/id/district-council/south-lakeland,31/08/2014,Development Implementation,Cultural Environmental Regulatory & Planning Services,http://opendatacommunities.org/def/concept/finance/sercop/objective/104,Tents & Events,03069445,08-09-2014,0000043244,580,0,Hire of 8 Wooden Chalets & Strip Lights,191510,Facilities Portable Building Hire
South Lakeland District Council,http://opendatacommunities.org/id/district-council/south-lakeland,31/08/2014,Lake Wardens,SLDC as Agent,,LAKE DISTRICT NATIONAL PARK AUTHORITY,,01-09-2014,0000043245,2676.73,0,Monthly Invoices for 2014-2015 for Boat,201700,Financial Services Grants
South Lakeland District Council,http://opendatacommunities.org/id/district-council/south-lakeland,31/08/2014,Business Support Community Services,Cultural Environmental Regulatory & Planning Services,http://opendatacommunities.org/def/concept/finance/sercop/objective/104,UNITED UTILITIES WATER PLC,2366678,03-09-2014,0000043247,569.3,0,Analysis Fees April 2013 - March 2014,371300,Utilities Water
South Lakeland District Council,http://opendatacommunities.org/id/district-council/south-lakeland,31/08/2014,Human Resources,Central Services,http://opendatacommunities.org/def/concept/finance/sercop/objective/102,HFX LIMITED,08137794,08-09-2014,0000043248,990.47,0,HFX System Maintenance Support Contract,261200,HR Professional & Advisory Services
South Lakeland District Council,http://opendatacommunities.org/id/district-council/south-lakeland,31/08/2014,Legal Services,Central Services,http://opendatacommunities.org/def/concept/finance/sercop/objective/102,GATES TRAVEL SERVICE,,08-09-2014,0000043249,33,0,Rail fare  on 26/08/14 from,261600,HR Travel & Subsistence
South Lakeland District Council,http://opendatacommunities.org/id/district-council/south-lakeland,31/08/2014,Business Support Community Services,Housing Services,http://opendatacommunities.org/def/concept/finance/sercop/objective/108,Landlord,,27-08-2014,0000043250,625,0,Monthly rent ,250000,Housing
South Lakeland District Council,http://opendatacommunities.org/id/district-council/south-lakeland,31/08/2014,Business Support Community Services,Housing Services,http://opendatacommunities.org/def/concept/finance/sercop/objective/108,Landlord,,27-08-2014,0000043251,500,0,Monthly rent ,202000,Financial Services Rents
South Lakeland District Council,http://opendatacommunities.org/id/district-council/south-lakeland,31/08/2014,Business Support Community Services,Housing Services,http://opendatacommunities.org/def/concept/finance/sercop/objective/108,Landlord,,27-08-2014,0000043252,1050,0,Monthly rent ,250000,Housing
South Lakeland District Council,http://opendatacommunities.org/id/district-council/south-lakeland,31/08/2014,Business Support Community Services,Housing Services,http://opendatacommunities.org/def/concept/finance/sercop/objective/108,IMPACT HOUSING ASSOCIATION LTD,IP21411R,10-09-2014,0000043253,715.7,0,Monthly rent ,250000,Housing
South Lakeland District Council,http://opendatacommunities.org/id/district-council/south-lakeland,31/08/2014,Business Support Community Services,Housing Services,http://opendatacommunities.org/def/concept/finance/sercop/objective/108,Landlord,,27-08-2014,0000043254,480,0,Monthly rent ,250000,Housing
South Lakeland District Council,http://opendatacommunities.org/id/district-council/south-lakeland,31/08/2014,Business Support Community Services,Housing Services,http://opendatacommunities.org/def/concept/finance/sercop/objective/108,Landlord,,27-08-2014,0000043255,500,0,Monthly rent ,250000,Housing
South Lakeland District Council,http://opendatacommunities.org/id/district-council/south-lakeland,31/08/2014,Business Support Community Services,Housing Services,http://opendatacommunities.org/def/concept/finance/sercop/objective/108,Landlord,,27-08-2014,0000043256,625,0,Monthly rent ,202000,Financial Services Rents
South Lakeland District Council,http://opendatacommunities.org/id/district-council/south-lakeland,31/08/2014,Business Support Community Services,Housing Services,http://opendatacommunities.org/def/concept/finance/sercop/objective/108,Landlord,,27-08-2014,0000043257,500,0,Monthly rent ,250010,Housing Letting Agents
South Lakeland District Council,http://opendatacommunities.org/id/district-council/south-lakeland,31/08/2014,Environment and Housing,Housing Services,http://opendatacommunities.org/def/concept/finance/sercop/objective/108,James Andrews Recruitment Solutions,06834852,27-08-2014,0000043258,729,0,Salary for Agency staff ,261400,HR Temporary & Agency Staff
South Lakeland District Council,http://opendatacommunities.org/id/district-council/south-lakeland,31/08/2014,Business Support Community Services,Housing Services,http://opendatacommunities.org/def/concept/finance/sercop/objective/108,James Andrews Recruitment Solutions,06834852,27-08-2014,0000043259,887.5,0,Payment ,261400,HR Temporary & Agency Staff
South Lakeland District Council,http://opendatacommunities.org/id/district-council/south-lakeland,31/08/2014,ICT Group,Central Services,http://opendatacommunities.org/def/concept/finance/sercop/objective/102,PROBRAND LTD,02653446,10-09-2014,0000043260,111.81,0,ZDG537/K609X-W00-1-  Nuance - Dragon,271600,ICT Software Customised & Bespoke
South Lakeland District Council,http://opendatacommunities.org/id/district-council/south-lakeland,31/08/2014,Social Enterprise Admin,Central Services,http://opendatacommunities.org/def/concept/finance/sercop/objective/102,ADECCO UK LIMITED,00593232,01-09-2014,0000043261,530.21,0,TEMPORARY GAZETTEER OFFICER,261400,HR Temporary & Agency Staff
South Lakeland District Council,http://opendatacommunities.org/id/district-council/south-lakeland,31/08/2014,Business Support Community Services,Housing Services,http://opendatacommunities.org/def/concept/finance/sercop/objective/108,ADECCO UK LIMITED,00593232,27-08-2014,0000043262,124.56,0,Cleaner for Town View Fields,261400,HR Temporary & Agency Staff
South Lakeland District Council,http://opendatacommunities.org/id/district-council/south-lakeland,31/08/2014,Revenues and Benefits,Central Services,http://opendatacommunities.org/def/concept/finance/sercop/objective/102,BADENOCH & CLARK,1356186,27-08-2014,0000043263,533.4,0,Revs and Bens,261300,HR Recruitment & Assessment
South Lakeland District Council,http://opendatacommunities.org/id/district-council/south-lakeland,31/08/2014,Development Management,Cultural Environmental Regulatory & Planning Services,http://opendatacommunities.org/def/concept/finance/sercop/objective/104,SALFORD CITY COUNCIL,,03-09-2014,0000043269,173.17,0,Check of Building Regulation,908000,Public Bodies Council support services
South Lakeland District Council,http://opendatacommunities.org/id/district-council/south-lakeland,31/08/2014,Business Support Community Services,Cultural Environmental Regulatory & Planning Services,http://opendatacommunities.org/def/concept/finance/sercop/objective/104,FOOD SAFETY DIRECT LIMITED,05294095,08-09-2014,0000043270,34.48,0,2 Packs of Security Seals,221000,Health & Safety� Products
South Lakeland District Council,http://opendatacommunities.org/id/district-council/south-lakeland,31/08/2014,Lake Wardens,Cultural Environmental Regulatory & Planning Services,http://opendatacommunities.org/def/concept/finance/sercop/objective/104,RS COMPONENTS LTD,01002091,01-09-2014,0000043271,46.38,0,1 x Pack of Blue M6 Crimp ring terminal,101100,Building Electrical
South Lakeland District Council,http://opendatacommunities.org/id/district-council/south-lakeland,31/08/2014,Lake Wardens,Cultural Environmental Regulatory & Planning Services,http://opendatacommunities.org/def/concept/finance/sercop/objective/104,RS COMPONENTS LTD,01002091,01-09-2014,0000043271,36.5,0,1 x Pack of Blue M6 Crimp ring terminal,101100,Building Electrical
South Lakeland District Council,http://opendatacommunities.org/id/district-council/south-lakeland,31/08/2014,Social Enterprise Admin,Cultural Environmental Regulatory & Planning Services,http://opendatacommunities.org/def/concept/finance/sercop/objective/104,GATES TRAVEL SERVICE,,08-09-2014,0000043275,87.75,0,TO ATTEND POCA IN,261600,HR Travel & Subsistence
South Lakeland District Council,http://opendatacommunities.org/id/district-council/south-lakeland,31/08/2014,Business Support Community Services,Housing Services,http://opendatacommunities.org/def/concept/finance/sercop/objective/108,Homeless Link,04313826,01-09-2014,0000043276,3250,0,Engage to change training fee's,201700,Financial Services Grants
South Lakeland District Council,http://opendatacommunities.org/id/district-council/south-lakeland,31/08/2014,Business Support Community Services,Housing Services,http://opendatacommunities.org/def/concept/finance/sercop/objective/108,DR D HAMBLY & PARTNERS,,27-08-2014,0000043277,25,0,Medical advice ,311600,Healthcare Services
South Lakeland District Council,http://opendatacommunities.org/id/district-council/south-lakeland,31/08/2014,Kendal Market Hall,Central Services,http://opendatacommunities.org/def/concept/finance/sercop/objective/102,HYGIENE CLEANING SUPPLIES LTD,04753934,03-09-2014,0000043279,22.3,0,5 x 12 Mini Jumbo Toilet Rolls for KTH,131011,Cleaning & Janitorial Cleaning Materials
South Lakeland District Council,http://opendatacommunities.org/id/district-council/south-lakeland,31/08/2014,Kendal Market Hall,Cultural Environmental Regulatory & Planning Services,http://opendatacommunities.org/def/concept/finance/sercop/objective/104,HYGIENE CLEANING SUPPLIES LTD,04753934,03-09-2014,0000043279,212.16,0,5 x 12 Mini Jumbo Toilet Rolls for KTH,131011,Cleaning & Janitorial Cleaning Materials
South Lakeland District Council,http://opendatacommunities.org/id/district-council/south-lakeland,31/08/2014,Business Support Community Services,Internal Trading Accounts,,THOMAS GRAHAM & SONS (IRON & STEEL) LTD,00656879,03-09-2014,0000043280,30.14,0,Screws,101400,Building General Materials
South Lakeland District Council,http://opendatacommunities.org/id/district-council/south-lakeland,31/08/2014,Business Support Community Services,Housing Services,http://opendatacommunities.org/def/concept/finance/sercop/objective/108,KENDAL SECURITY CENTRE LTD,03179893,08-09-2014,0000043283,16,0,1x Key for room 14,192212,Facilities Security Equipment
South Lakeland District Council,http://opendatacommunities.org/id/district-council/south-lakeland,31/08/2014,Social Enterprise Admin,Cultural Environmental Regulatory & Planning Services,http://opendatacommunities.org/def/concept/finance/sercop/objective/104,Matchtech,02526418,01-09-2014,0000043284,866.1,0,TO SUPPLY DEVELOPMENT CONTROL TEAM,261300,HR Recruitment & Assessment
South Lakeland District Council,http://opendatacommunities.org/id/district-council/south-lakeland,31/08/2014,Development Strategy,Cultural Environmental Regulatory & Planning Services,http://opendatacommunities.org/def/concept/finance/sercop/objective/104,Matchtech,02526418,27-08-2014,0000043285,833.7,0,"12-week contract, 30hrs",261300,HR Recruitment & Assessment
South Lakeland District Council,http://opendatacommunities.org/id/district-council/south-lakeland,31/08/2014,Development Strategy,Cultural Environmental Regulatory & Planning Services,http://opendatacommunities.org/def/concept/finance/sercop/objective/104,NEWSQUEST MEDIA GROUP LTD,03102566,03-09-2014,0000043291,275,0,Press notice in Westmorland Gazette on,191000,Facilities Advertising
South Lakeland District Council,http://opendatacommunities.org/id/district-council/south-lakeland,31/08/2014,Social Enterprise Admin,Cultural Environmental Regulatory & Planning Services,http://opendatacommunities.org/def/concept/finance/sercop/objective/104,NEWSQUEST MEDIA GROUP LTD,03102566,03-09-2014,0000043292,185,0,PUBLIC NOTICES FOR PLANNIG DEPARTMENT.,191000,Facilities Advertising
South Lakeland District Council,http://opendatacommunities.org/id/district-council/south-lakeland,31/08/2014,Environment and Housing,Housing Services,http://opendatacommunities.org/def/concept/finance/sercop/objective/108,CHARTERED INSTITUTE OF HOUSING,,08-09-2014,0000043293,240,0,North West & Yorkshire & Humberside,202100,Financial Services Subscriptions
South Lakeland District Council,http://opendatacommunities.org/id/district-council/south-lakeland,31/08/2014,Printing Section,Central Services,http://opendatacommunities.org/def/concept/finance/sercop/objective/102,TOSHIBA TEC UK IMAGING SYSTEMS LTD,04124726,27-08-2014,0000043299,53,0,Monthly Prisma Rental,271600,ICT Software Customised & Bespoke
South Lakeland District Council,http://opendatacommunities.org/id/district-council/south-lakeland,31/08/2014,Printing Section,Central Services,http://opendatacommunities.org/def/concept/finance/sercop/objective/102,TOSHIBA TEC UK IMAGING SYSTEMS LTD,04124726,27-08-2014,0000043300,499.5,0,Canon Maintenance,271600,ICT Software Customised & Bespoke
South Lakeland District Council,http://opendatacommunities.org/id/district-council/south-lakeland,31/08/2014,Business Support Community Services,Internal Trading Accounts,,Masterstaff Limited,02777593,27-08-2014,0000043301,566.25,0, August 2014,261300,HR Recruitment & Assessment
South Lakeland District Council,http://opendatacommunities.org/id/district-council/south-lakeland,31/08/2014,Business Support Community Services,Internal Trading Accounts,,Masterstaff Limited,02777593,27-08-2014,0000043302,429.98,0,  August 2014,261300,HR Recruitment & Assessment
South Lakeland District Council,http://opendatacommunities.org/id/district-council/south-lakeland,31/08/2014,Business Support Community Services,Internal Trading Accounts,,VOLVO GROUP UK LTD,02190944,10-09-2014,0000043305,39,0,Belt,381000,Vehicle Mgt Commercial
South Lakeland District Council,http://opendatacommunities.org/id/district-council/south-lakeland,31/08/2014,Social Enterprise Admin,Highways & Transport Services,http://opendatacommunities.org/def/concept/finance/sercop/objective/107,We Love Logos,,10-09-2014,0000043306,232.95,0,1 Pair Apache AP303 Safety Boots Size,141100,Clothing Protective
South Lakeland District Council,http://opendatacommunities.org/id/district-council/south-lakeland,31/08/2014,Business Support Community Services,Internal Trading Accounts,,FAUN ZOELLER (UK) LTD,00751804,10-09-2014,0000043307,561.92,0,Strikers,381400,Vehicle Mgt Maintenance
South Lakeland District Council,http://opendatacommunities.org/id/district-council/south-lakeland,31/08/2014,Business Support Community Services,Internal Trading Accounts,,BERENDSEN UK LTD,00228604,10-09-2014,0000043308,173.44,0,Workwear hire 30/03/13 - 29/03/14,161000,Domestic Goods Commercial
South Lakeland District Council,http://opendatacommunities.org/id/district-council/south-lakeland,31/08/2014,Business Support Community Services,Internal Trading Accounts,,BILL MOORE LIFTING TACKLE LTD,01482196,03-09-2014,0000043309,80,0,LOLER inspection,181812,Environment Technical Equip Testing
South Lakeland District Council,http://opendatacommunities.org/id/district-council/south-lakeland,31/08/2014,Business Support Community Services,Internal Trading Accounts,,RIBBLE FUEL OILS,,03-09-2014,0000043310,1420,0,Gas oil,381100,Vehicle Mgt Fuel
South Lakeland District Council,http://opendatacommunities.org/id/district-council/south-lakeland,31/08/2014,Business Support Community Services,Internal Trading Accounts,,K S INTERNATIONAL LTD,02703321,03-09-2014,0000043311,42,0,Bearings,381500,Vehicle Mgt Parts
South Lakeland District Council,http://opendatacommunities.org/id/district-council/south-lakeland,31/08/2014,Business Support Community Services,Internal Trading Accounts,,K S INTERNATIONAL LTD,02703321,01-09-2014,0000043312,166.4,0,Bearings,381500,Vehicle Mgt Parts
South Lakeland District Council,http://opendatacommunities.org/id/district-council/south-lakeland,31/08/2014,Business Support Community Services,Internal Trading Accounts,,K S INTERNATIONAL LTD,02703321,01-09-2014,0000043313,260,0,Bearings,381500,Vehicle Mgt Parts
South Lakeland District Council,http://opendatacommunities.org/id/district-council/south-lakeland,31/08/2014,Business Support Community Services,Internal Trading Accounts,,HYDRAIR TRUCK & TRAILER PARTS LTD,,01-09-2014,0000043314,85.93,0,Pump,381500,Vehicle Mgt Parts
South Lakeland District Council,http://opendatacommunities.org/id/district-council/south-lakeland,31/08/2014,Environmental Protection,Cultural Environmental Regulatory & Planning Services,http://opendatacommunities.org/def/concept/finance/sercop/objective/104,CUMBRIA WASTE RECYCLING LTD,03162439,01-09-2014,0000043315,96.82,0,cemeteries Bin emptying and disposal,182012,Environment Waste Management Recycling
South Lakeland District Council,http://opendatacommunities.org/id/district-council/south-lakeland,31/08/2014,Environmental Protection,Cultural Environmental Regulatory & Planning Services,http://opendatacommunities.org/def/concept/finance/sercop/objective/104,CUMBRIA WASTE RECYCLING LTD,03162439,01-09-2014,0000043317,52.97,0,cemeteries Bin emptying and disposal,182012,Environment Waste Management Recycling
South Lakeland District Council,http://opendatacommunities.org/id/district-council/south-lakeland,31/08/2014,Environmental Protection,Cultural Environmental Regulatory & Planning Services,http://opendatacommunities.org/def/concept/finance/sercop/objective/104,CUMBRIA WASTE RECYCLING LTD,03162439,01-09-2014,0000043318,65.47,0,cemeteries Bin emptying and disposal,182012,Environment Waste Management Recycling
South Lakeland District Council,http://opendatacommunities.org/id/district-council/south-lakeland,31/08/2014,Environmental Protection,Cultural Environmental Regulatory & Planning Services,http://opendatacommunities.org/def/concept/finance/sercop/objective/104,CUMBRIA WASTE RECYCLING LTD,03162439,01-09-2014,0000043320,68.04,0,cemeteries Bin emptying and disposal,182012,Environment Waste Management Recycling
South Lakeland District Council,http://opendatacommunities.org/id/district-council/south-lakeland,31/08/2014,Environmental Protection,Cultural Environmental Regulatory & Planning Services,http://opendatacommunities.org/def/concept/finance/sercop/objective/104,CUMBRIA WASTE RECYCLING LTD,03162439,01-09-2014,0000043323,94.8,0,cemeteries Bin emptying and disposal,182012,Environment Waste Management Recycling
South Lakeland District Council,http://opendatacommunities.org/id/district-council/south-lakeland,31/08/2014,Kendal Town Hall,Cultural Environmental Regulatory & Planning Services,http://opendatacommunities.org/def/concept/finance/sercop/objective/104,CUMBRIA WASTE RECYCLING LTD,03162439,01-09-2014,0000043325,119.4,0,Weekly collection of the bins at Kendal,182012,Environment Waste Management Recycling
South Lakeland District Council,http://opendatacommunities.org/id/district-council/south-lakeland,31/08/2014,Business Support Community Services,Internal Trading Accounts,,RIBBLESDALE AUTO ELECTRICS 1992 LTD,02732686,01-09-2014,0000043331,87.3,0,Lamps,381500,Vehicle Mgt Parts
South Lakeland District Council,http://opendatacommunities.org/id/district-council/south-lakeland,31/08/2014,Business Support Community Services,Internal Trading Accounts,,RIBBLESDALE AUTO ELECTRICS 1992 LTD,02732686,03-09-2014,0000043332,30.81,0,Lamps,381500,Vehicle Mgt Parts
South Lakeland District Council,http://opendatacommunities.org/id/district-council/south-lakeland,31/08/2014,Business Support Community Services,Internal Trading Accounts,,RIBBLESDALE AUTO ELECTRICS 1992 LTD,02732686,08-09-2014,0000043333,21.45,0,Lamps,381500,Vehicle Mgt Parts
South Lakeland District Council,http://opendatacommunities.org/id/district-council/south-lakeland,31/08/2014,Social Enterprise Admin,Cultural Environmental Regulatory & Planning Services,http://opendatacommunities.org/def/concept/finance/sercop/objective/104,CAPITA SYMONDS LTD,03173410,01-09-2014,0000043362,2351,0,ARBORICULTURE SERVICES PROVIDED BY,390000,Construction
South Lakeland District Council,http://opendatacommunities.org/id/district-council/south-lakeland,31/08/2014,Social Enterprise Admin,Culture and Related Serv,http://opendatacommunities.org/def/concept/finance/sercop/objective/104,ARB CONSULTANTS LTD,06082066,01-09-2014,0000043364,875,0,"Bat survey in Nobles Rest, Kendal",159999,Consultancy Not Elsewhere Classified
South Lakeland District Council,http://opendatacommunities.org/id/district-council/south-lakeland,31/08/2014,Legal Services,Central Services,http://opendatacommunities.org/def/concept/finance/sercop/objective/102,VENN GROUP RECRUITMENT SOLUTIONS,,01-09-2014,0000043370,532.53,0,Wages from w/k ending,261400,HR Temporary & Agency Staff
South Lakeland District Council,http://opendatacommunities.org/id/district-council/south-lakeland,31/08/2014,Business Support Community Services,Cultural Environmental Regulatory & Planning Services,http://opendatacommunities.org/def/concept/finance/sercop/objective/104,CUMBRIA WASTE RECYCLING LTD,03162439,01-09-2014,0000043371,12850.63,0,Empty recycling banks in April,182012,Environment Waste Management Recycling
South Lakeland District Council,http://opendatacommunities.org/id/district-council/south-lakeland,31/08/2014,Business Support Community Services,Internal Trading Accounts,,ARCO LIMITED,00133804,03-09-2014,0000043372,231.8,0,Eez wipes,141100,Clothing Protective
South Lakeland District Council,http://opendatacommunities.org/id/district-council/south-lakeland,31/08/2014,Business Support Community Services,Internal Trading Accounts,,FAUN ZOELLER (UK) LTD,00751804,10-09-2014,0000043376,280,0,Strikers,381400,Vehicle Mgt Maintenance
South Lakeland District Council,http://opendatacommunities.org/id/district-council/south-lakeland,31/08/2014,Business Support Community Services,Internal Trading Accounts,,FAUN ZOELLER (UK) LTD,00751804,10-09-2014,0000043376,1101.17,0,Strikers,381400,Vehicle Mgt Maintenance
South Lakeland District Council,http://opendatacommunities.org/id/district-council/south-lakeland,31/08/2014,Business Support Community Services,Internal Trading Accounts,,SOLWAY DAF,1393710,08-09-2014,0000043377,208.82,0,Pipe,381000,Vehicle Mgt Commercial
South Lakeland District Council,http://opendatacommunities.org/id/district-council/south-lakeland,31/08/2014,Business Support Community Services,Internal Trading Accounts,,RIBBLESDALE AUTO ELECTRICS 1992 LTD,02732686,01-09-2014,0000043378,56.48,0,Lamps,381500,Vehicle Mgt Parts
South Lakeland District Council,http://opendatacommunities.org/id/district-council/south-lakeland,31/08/2014,Business Support Community Services,Internal Trading Accounts,,ARCO LIMITED,00133804,01-09-2014,0000043379,347.7,0,Eez wipes,141100,Clothing Protective
South Lakeland District Council,http://opendatacommunities.org/id/district-council/south-lakeland,31/08/2014,Business Support Community Services,Internal Trading Accounts,,TAYLOR ENGINEERING & FABRICATIONS LTD,04989359,01-09-2014,0000043380,78.95,0,Power steering filters,391200,Construction Engineering
South Lakeland District Council,http://opendatacommunities.org/id/district-council/south-lakeland,31/08/2014,Business Support Community Services,Internal Trading Accounts,,SOLWAY DAF,1393710,01-09-2014,0000043381,105.57,0,Pipe,381000,Vehicle Mgt Commercial
South Lakeland District Council,http://opendatacommunities.org/id/district-council/south-lakeland,31/08/2014,Business Support Community Services,Internal Trading Accounts,,SOLWAY DAF,1393710,01-09-2014,0000043382,400.66,0,Pipe,381000,Vehicle Mgt Commercial
South Lakeland District Council,http://opendatacommunities.org/id/district-council/south-lakeland,31/08/2014,Business Support Community Services,Internal Trading Accounts,,SOLWAY DAF,1393710,01-09-2014,0000043383,31.86,0,Pipe,381000,Vehicle Mgt Commercial
South Lakeland District Council,http://opendatacommunities.org/id/district-council/south-lakeland,31/08/2014,Business Support Community Services,Internal Trading Accounts,,SOLWAY DAF,1393710,01-09-2014,0000043384,68.21,0,Pipe,381000,Vehicle Mgt Commercial
